Workbook

Sheet Version History
B2: Date | C2: Version | D2: Comments

Sheet COVER
C8: INTRO
C9: The ECOWAS Regional Centre for Renewable Energy and Energy Efficiency (ECREEE), on behalf of the members of the Economic Community of West African States (ECOWAS) , has requested EU Energy Initiative Partnership Dialogue Facility (EUEI PDF) support for the development of a set of tools (toolbox) to define tariffs for renewable energy and to provide technical assistance for renewable energy tariff calculation. As a result, EMRC (a member of the MRC Group of Companies) has been commissioned by EUEI PDF to develop a toolbox consisting of several standard tariff models to calculate tariffs for renewable technologies and an associated user manual. This Excel based model covers tariff calculation related to RES based Independent Power Producers (IPPs).
C14: TOOLBOX
C15: This is the Supply Curve model | F15: The toolbox is made up of 6 Excel models:
F17: Three renewable project models | P17: One model
P18: of policy goals
I20: 1. Renewable IPP | K20: 2. Prosumer | M20: 3. Green Mini-Grid | Q20: 6. Supply curve model
F25: Two models that | I25: 4. Wind energy profile
F26: support data conversion
F27: to model inputs | I27: 5. Fuel unit conversion
C32: LEGEND
D33: Tabs: | Q33: Cell coding:
E34: Cover | G34: Cover sheet with model information
E35: Supply Curve Control Panel | G35: Control panel for the operation of the model | R35: 12.34 | S35: Input (hard coded data)
R36: 12.34 | S36: Formulas and references (calculations)
R37: 12.34 | S37: Scenario or assumption election
R38: 12.34 | S38: Inactive area (with the current option selection)
C46: DISCLAIMER
D47: This financial tool is for informational purposes only. MRC Group, ECREEE and the EUEI PDF are not responsible and do not accept any liability whatsoever for the accuracy of this financial tool or any data within it.
D48: This financial tool does not represent an endorsement by MRC Group, ECREEE or the EUEI PDF of any activity or project.

Sheet Supply Curve Control Panel
P2: xx | Q2: Input (hard coded data)
P3: xx | Q3: Formulas and references (calculations)
P4: xx | Q4: Scenario or assumption election
A6: Outputs
B9: -> Go To Inputs section
B10: -> Go To Calculations section | M10: Currently: | N10: =WksProtected(A1) -> Protected
A19: TOTAL RES-E | K19: Tech-specific RES-E:
B21: Total RES-E Target: | C21: 30000 | D21: GWh | M21: Total RES-E Target: | N21: 7000 | O21: GWh
B22: Required incentive: | C22: =C26 -> 178.5001331 | D22: =B46&"/MWh" -> XXX/MWh | M22: Required incentive: | N22: =L24 -> 148.8083587 | O22: =B46&"/MWh" -> XXX/MWh
L24: =IF(N21<BV287,"Increase Target",IF(N21>OFFSET($BV$287,D284-1,0),"Not Potential",OFFSET($BS$286,MATCH($N$21,$BV$287:$BV$911,1),2))) -> 148.8083587 | M24: 0
L25: =L24 -> 148.8083587 | M25: =N21 -> 7000
C26: =IF(C21<AL287,"Increase Target",IF(C21>OFFSET($AL$287,$F$284-1,0),"Not Potential",OFFSET($AI$286,MATCH($C$21,$AL$287:$AL$3411,1),2))) -> 178.5001331 | D26: 0 | L26: 0 | M26: =M25 -> 7000
C27: =C26 -> 178.5001331 | D27: =C21 -> 30000 | L27: =L25 -> 148.8083587 | M27: =M26 -> 7000
C28: 0 | D28: =D27 -> 30000
C29: =C27 -> 178.5001331 | D29: =D28 -> 30000
A42: Inputs
B44: Basic data | F44: Capital Structure | K44: Tax Structure | O44: Inflation parameters
B45: Currency | C45: Base Year | D45: Project - Year #0 | E45: #Years (available Projection Data) | F45: Equity Ratio (%) | G45: Cost of Equity (%) | H45: Loan rate (%) | I45: Loan Maturity (yrs) | J45: Cost of Capital (%) | K45: VAT (%) | L45: Profits tax (%) | M45: Other taxes (Unit/MWh) | N45: Amortization period (yrs) | O45: Real / Nominal | P45: Expected annual inflation rate (%)
B46: XXX | C46: 2017 | D46: 2018 | E46: 40 | J46: =F46*G46+(1-F46)*H46*(1-L46) -> 0 | O46: Real
B48: Technical data | C48: Technical Data
C49: Total Potential | D49: Avg Plant Efficiency | E49: Internal Consumption | F49: Degradation | H49: Useful life | J49: Capacity Factor
C50: MW | D50: % | E50: % | F50: 1st yr | G50: 2nd-6th yr | H50: yrs | J50: min | K50: max | O50: For graphs and filters: | Q50: Tech ID#
B51: Solar PV | P51: ="1. "&B51 -> 1. Solar PV | Q51: 1
B52: Small Hydro | P52: ="2. "&B52 -> 2. Small Hydro | Q52: 2
B53: Wind | P53: ="3. "&B53 -> 3. Wind | Q53: 3
B54: Geothermal | P54: ="4. "&B54 -> 4. Geothermal | Q54: 4
B55: Biomass | P55: ="5. "&B55 -> 5. Biomass | Q55: 5
C57: Investment data
B58: Investment data | C58: =CONCATENATE("Invest. Cost (",B46,"/kW)") -> Invest. Cost (XXX/kW)
C59: min | D59: max
B60: =$B$51 -> Solar PV
B61: =$B$52 -> Small Hydro
B62: =$B$53 -> Wind
B63: =$B$54 -> Geothermal
B64: =$B$55 -> Biomass
C66: =CONCATENATE("Fixed O&M Cost (",B46,"/kW yr)") -> Fixed O&M Cost (XXX/kW yr)
B67: O&M Costs data
C68: min | D68: max
B69: =$B$51 -> Solar PV
B70: =$B$52 -> Small Hydro
B71: =$B$53 -> Wind
B72: =$B$54 -> Geothermal
B73: =$B$55 -> Biomass
C75: Other costs | J75: Construction parameters
B76: Other costs and construction data | C76: =CONCATENATE("Fuel Cost & Variable O&M (",B46,"/MWh)") -> Fuel Cost & Variable O&M (XXX/MWh) | G76: Unit size (based on number of simulations and potential) | H76: Right for use of land | I76: Grid connection | J76: Construction Period (max 3 years) | K76: Year -2 | L76: Year -1 | M76: Year 0
C77: min | D77: max | G77: MW | H77: =CONCATENATE(B46,"/kW") -> XXX/kW | I77: =CONCATENATE(B46,"/unit") -> XXX/unit | J77: yrs | K77: % | L77: % | M77: %
B78: =$B$51 -> Solar PV | E78: =CONCATENATE($B$46,"/MWh") -> XXX/MWh | G78: =C51/$D$284 -> 0 | M78: =IF(J78=1,1,IF(J78=2,1-L78,1-L78-K78)) -> 1
B79: =$B$52 -> Small Hydro | E79: =CONCATENATE($B$46,"/MWh") -> XXX/MWh | G79: =C52/$D$284 -> 0 | M79: =IF(J79=1,1,IF(J79=2,1-L79,1-L79-K79)) -> 1
B80: =$B$53 -> Wind | E80: XXX/MWh | G80: 0 | M80: =IF(J80=1,1,IF(J80=2,1-L80,1-L80-K80)) -> 1
B81: =$B$54 -> Geothermal | E81: XXX/MWh | G81: =C54/$D$284 -> 0 | M81: =IF(J81=1,1,IF(J81=2,1-L81,1-L81-K81)) -> 1
B82: =$B$55 -> Biomass | E82: XXX/MWh | G82: =C55/$D$284 -> 0 | M82: =IF(J82=1,1,IF(J82=2,1-L82,1-L82-K82)) -> 1
B88: Cost Drivers Percentiles
B89: Investment Cost | C89: 0 | D89: 0.33 | E89: 0.67 | F89: 1
B90: Capacity Factor | C90: 0 | D90: 0.33 | E90: 0.67 | F90: 1
B91: Fuel Cost | C91: 0 | D91: 0.33 | E91: 0.67 | F91: 1
B92: O&M Cost | C92: 0 | D92: 0.33 | E92: 0.67 | F92: 1
A94: Calculations
A95: Data & Results sheet used for simulations
B96: Fixed inputs | C96: XX.XX | D96: (indicates inputs with values that are common to all simulated projects)
B99: Investment Cost (for Base Year) | F99: Technical Characteristics
B100: CAPEX per MW (Investment + Land) | C100: =+F147+T147 -> 4500
E101: not considered | F101: Gross Capacity | H101: =M147 -> 19.53125 | I101: MW | L101: Aux (Heat Rate):
B102: TOTAL CAPEX (CAPEX per MW + Grid Connection) | C102: =$C$100*$H$101/1000+U147/1000000 -> 88.0859375 | D102: ="M"&B46 -> MXXX | F102: Fuel consumption | H102: =1/L102 -> 2.777777778 | I102: =+C129&"/MWh" -> MWh/MWh | L102: =N147 -> 0.36
B103: Years under construction | C103: =G147 -> 3 | F103: Internal consumption | H103: =O147*100 -> 7 | I103: %
B104: % Investment Year0/Total | C104: =H147*100 -> 10 | D104: % | F104: Degradation | H104: =P147*100 -> 0.3 | I104: % first year
B105: % Investment Year1/Total (rest 3rd year) | C105: =I147*100 -> 40 | D105: % | H105: =Q147*100 -> 0.3 | I105: % 2nd to 6th year
B106: Capital | F106: Useful life | H106: =R147 -> 25 | I106: years
B107: Equity | C107: =F46*100 -> 0 | D107: %
B108: Loan | C108: =100-C107 -> 100 | D108: % | F108: Capacity Factor | H108: =S147*100 -> 90 | I108: %
B109: Loan Rate | C109: =H46*100 -> 0 | D109: %
B110: Period | C110: =I46 -> 0 | D110: years
B111: Intercalar Interest Rate | C111: =C109+0.5 -> 0.5 | D111: % | F111: Initial available net capacity | H111: =+H101*(1-H103/100) -> 18.1640625 | I111: MW
F112: Equivalent hours per year | H112: =8760*H108/100 -> 7884 | I112: hs/year
B113: Inflation | C113: =IF($O$46="Real","NO","YES") -> NO | D113: YES/NO
B114: Project Year #1 => | C114: =D46+1 -> 2019 | D114: =IF(C113="NO","-",IF(AND(C103=1,(C114-C115)<1),"ERROR",IF(AND(C103=2,(C114-C115)<2),"ERROR",""))) -> -
B115: Base Year => | C115: =C46 -> 2017 | D115: =IF(C113="NO","-",IF(AND(C103=1,(C114-C115)<1),"ERROR","")) -> -
B116: #Years (available Projection Data) | C116: =E46 -> 40 | D116: MAX.60 | F116: Expected Energy sold | H116: =+E257 ->  | I116: GWh/year
B119: Taxes
B120: VAT | C120: =K46*100 -> 0 | D120: %
B121: Profits tax (and others) | C121: =L46*100 -> 0 | D121: % | F121: =+"Values in "&C115&" "&B46 -> Values in 2017 XXX
B122: Amortization period | C122: =N46 -> 0 | D122: years | F122: Long Term Energy Price | H122: 225.1484183 | I122: ="["&B46&"/MWh]" -> [XXX/MWh]
F123: Long Term Capacity Price | H123: 0 | I123: ="["&B46&"/kW-month]" -> [XXX/kW-month]
B124: Forecasted Fuel Cost at plant location | H124: =IF(SUM($G$179)=0,9999,$G$186*1000/$G$179) -> 0 | I124: ="["&B46&"/MWh]" -> [XXX/MWh]
B125: Fuel @plant - Fixed Comp. | C125: 0 | D125: =+B46&"/unit" -> XXX/unit | F125: Monomic Price | H125: =+H122+H124 -> 225.1484183 | I125: ="["&B46&"/MWh]" -> [XXX/MWh]
B126: Fuel @plant - Variable | C126: =J147 -> 15 | D126: =+B46&"/"&C129 -> XXX/MWh
B127: (for Base Year) | C127: =J147 -> 15 | D127: =+B46&"/MWh" -> XXX/MWh | F127: PROJECT IRR
F128: =+C223 -> 0.1986389959
B129: Unit | C129: MWh
B130: Fuel LHV | C130: =K147 -> 0 | D130: =+C129&"/unit" -> MWh/unit | F130: PRIV.RETURN | G130: Target
F131: =C221 ->  | G131: =G46 -> 0
B132: Other Costs
B133: Other Taxes | C133: =M46 -> 0 | D133: =+B46&"/MWh" -> XXX/MWh | F133: ROE
B134: % affected by Inflation | C134: 0 | D134: % | F134: =+C221 -> 
B135: O&M (variable) | C135: 0 | D135: =+B46&"/MWh" -> XXX/MWh
B136: % affected by Inflation | C136: 0 | D136: %
B137: O&M (fixed) | C137: =L147 -> 270 | D137: =+B46&"/kW" -> XXX/kW
B138: % affected by Inflation | C138: 0 | D138: %
B139: Administration | C139: 0 | D139: =+B46&"/MWh" -> XXX/MWh
B140: % affected by Inflation | C140: 0 | D140: %
B141: Nodal Factor (transmission losses) | C141: 100 | D141: %
F146: Inv Cost | G146: Yrs Constr | H146: % Inv 1yr | I146: % Inv 2yr | J146: Fuel Price | L146: O&M | M146: Capacity | N146: Heat Rate | O146: Int Consumpt | P146: Degrad 1yr | Q146: Degrad 2yr | R146: Life | S146: Capacity Factor | T146: Land | U146: Grid conn
C147: Used in Macro for simulations: | F147: 4500 | G147: 3 | H147: 0.1 | I147: 0.4 | J147: 15 | K147: 0 | L147: 270 | M147: 19.53125 | N147: 0.36 | O147: 0.07 | P147: 0.003 | Q147: 0.003 | R147: 25 | S147: 0.9 | T147: 0 | U147: 195312.5
A149: Cash flow used to arrive at energy tariff to give target return
C152: Year | D152: =E152-1 -> 2016 | E152: =IF($C$103=1,F152-1,HLOOKUP(E$154,$D$270:$BL$272,2,FALSE)) -> 2017 | F152: =+IF(F154<=$H$106,HLOOKUP(F$154,$D$270:$BL$272,2,FALSE),"") -> 2018 | G152: =+IF(G154<=$H$106,HLOOKUP(G$154,$D$270:$BL$272,2,FALSE),"") -> 2019 | H152: 2020 | I152: 2021 | J152: 2022 | K152: 2023 | L152: 2024 | M152: 2025 | N152: 2026 | O152: 2027 | P152: 2028 | Q152: 2029 | R152: 2030 | S152: 2031 | T152: 2032 | U152: 2033 | V152: 2034 | W152: 2035 | X152: 2036 | Y152: 2037 | Z152: 2038 | AA152: 2039 | AB152: 2040 | AC152: 2041 | AD152: 2042 | AE152: 2043
B153: In Operation (1 = YES, 0 = NO): | D153: =+IF(AND(D154>0,D154<=$H$106),1,0) -> 0 | E153: =+IF(AND(E154>0,E154<=$H$106),1,0) -> 0 | F153: 0 | G153: 1 | H153: 1 | I153: 1 | J153: 1 | K153: 1 | L153: 1 | M153: 1 | N153: 1 | O153: 1 | P153: 1 | Q153: 1 | R153: 1 | S153: 1 | T153: 1 | U153: 1 | V153: 1 | W153: 1 | X153: 1 | Y153: 1 | Z153: 1 | AA153: 1 | AB153: 1 | AC153: 1 | AD153: 1 | AE153: 1 | AF153: 0 | AG153: 0 | AH153: 0 | AI153: 0 | AJ153: 0 | AK153: 0 | AL153: 0 | AM153: 0 | AN153: 0 | AO153: 0 | AP153: 0 | AQ153: 0 | AR153: 0 | AS153: 0 | AT153: 0 | AU153: 0 | AV153: 0 | AW153: 0 | AX153: 0 | AY153: 0 | AZ153: 0 | BA153: 0 | BB153: 0 | BC153: 0 | BD153: 0 | BE153: 0 | BF153: 0 | BG153: 0 | BH153: 0 | BI153: 0 | BJ153: 0 | BK153: 0 | BL153: 0
B154: MARKET PRICES & DISPATCH | C154: Project Year # | D154: =E154-1 -> -2 | E154: -1 | F154: 0 | G154: 1 | H154: 2 | I154: 3 | J154: 4 | K154: 5 | L154: 6 | M154: 7 | N154: 8 | O154: 9 | P154: 10 | Q154: 11 | R154: 12 | S154: 13 | T154: 14 | U154: 15 | V154: 16 | W154: 17 | X154: 18 | Y154: 19 | Z154: 20 | AA154: 21 | AB154: 22 | AC154: 23 | AD154: 24 | AE154: 25 | AF154: 26 | AG154: 27 | AH154: 28 | AI154: 29 | AJ154: 30 | AK154: 31 | AL154: 32 | AM154: 33 | AN154: 34 | AO154: 35 | AP154: 36 | AQ154: 37 | AR154: 38 | AS154: 39 | AT154: 40 | AU154: 41 | AV154: 42 | AW154: 43 | AX154: 44 | AY154: 45 | AZ154: 46 | BA154: 47 | BB154: 48 | BC154: 49 | BD154: 50 | BE154: 51 | BF154: 52 | BG154: 53 | BH154: 54 | BI154: 55 | BJ154: 56 | BK154: 57 | BL154: 58
B156: FORECASTED US INFLATION RATIO | E156: =IF($C$103=1,F156,IF($C$113="YES",HLOOKUP(E$154,$D$270:$BL$273,4,FALSE),1)) -> 1 | F156: =IF($C$113="YES",HLOOKUP(F$154,$D$270:$BL$273,4,FALSE),1) -> 1 | G156: 1 | H156: 1 | I156: 1 | J156: 1 | K156: 1 | L156: 1 | M156: 1 | N156: 1 | O156: 1 | P156: 1 | Q156: 1 | R156: 1 | S156: 1 | T156: 1 | U156: 1 | V156: 1 | W156: 1 | X156: 1 | Y156: 1 | Z156: 1 | AA156: 1 | AB156: 1 | AC156: 1 | AD156: 1 | AE156: 1 | AF156: 1 | AG156: 1 | AH156: 1 | AI156: 1 | AJ156: 1 | AK156: 1 | AL156: 1 | AM156: 1 | AN156: 1 | AO156: 1 | AP156: 1 | AQ156: 1 | AR156: 1 | AS156: 1 | AT156: 1 | AU156: 1 | AV156: 1 | AW156: 1 | AX156: 1 | AY156: 1 | AZ156: 1 | BA156: 1 | BB156: 1 | BC156: 1 | BD156: 1 | BE156: 1 | BF156: 1 | BG156: 1 | BH156: 1 | BI156: 1 | BJ156: 1 | BK156: 1 | BL156: 1
B158: =+"FUEL PRICE @PLANT VARIAB [¢"&B46&"/"&C129&"]" -> FUEL PRICE @PLANT VARIAB [¢XXX/MWh] | E158: =IF($C$103=1,F158,IF($C$113="YES",HLOOKUP(E$154,$D$277:$BL$282,5,FALSE),$C$126*100)) -> 1500 | F158: =IF($C$113="YES",HLOOKUP(F$154,$D$277:$BL$282,5,FALSE),$C$126*100) -> 1500 | G158: =IF($C$113="YES",HLOOKUP(G$154,$D$277:$BL$282,5,FALSE),$C$126*100) -> 1500 | H158: 1500 | I158: 1500 | J158: 1500 | K158: 1500 | L158: 1500 | M158: 1500 | N158: 1500 | O158: 1500 | P158: =IF($C$113="YES",HLOOKUP(P$154,$D$277:$BL$282,5,FALSE),$C$126*100) -> 1500 | Q158: 1500 | R158: 1500 | S158: 1500 | T158: 1500 | U158: 1500 | V158: 1500 | W158: 1500 | X158: 1500 | Y158: 1500 | Z158: 1500 | AA158: 1500 | AB158: 1500 | AC158: 1500 | AD158: 1500 | AE158: 1500 | AF158: 1500 | AG158: 1500 | AH158: 1500 | AI158: 1500 | AJ158: 1500 | AK158: 1500 | AL158: 1500 | AM158: 1500 | AN158: 1500 | AO158: 1500 | AP158: 1500 | AQ158: 1500 | AR158: 1500 | AS158: 1500 | AT158: 1500 | AU158: 1500 | AV158: 1500 | AW158: 1500 | AX158: 1500 | AY158: 1500 | AZ158: 1500 | BA158: 1500 | BB158: 1500 | BC158: 1500 | BD158: 1500 | BE158: 1500 | BF158: 1500 | BG158: 1500 | BH158: 1500 | BI158: 1500 | BJ158: 1500 | BK158: 1500 | BL158: 1500
B160: ENERGY PRICE (VAR) | C160: ="["&B46&"/MWh]" -> [XXX/MWh] | G160: =$H$122*G$156 -> 225.1484183 | H160: =$H$122*H$156 -> 225.1484183 | I160: 225.1484183 | J160: 225.1484183 | K160: 225.1484183 | L160: 225.1484183 | M160: 225.1484183 | N160: 225.1484183 | O160: 225.1484183 | P160: 225.1484183 | Q160: 225.1484183 | R160: 225.1484183 | S160: 225.1484183 | T160: 225.1484183 | U160: 225.1484183 | V160: 225.1484183 | W160: 225.1484183 | X160: 225.1484183 | Y160: 225.1484183 | Z160: 225.1484183 | AA160: 225.1484183 | AB160: 225.1484183 | AC160: 225.1484183 | AD160: 225.1484183 | AE160: 225.1484183 | AF160: 225.1484183 | AG160: 225.1484183 | AH160: 225.1484183 | AI160: 225.1484183 | AJ160: 225.1484183 | AK160: 225.1484183 | AL160: 225.1484183 | AM160: 225.1484183 | AN160: 225.1484183 | AO160: 225.1484183 | AP160: 225.1484183 | AQ160: 225.1484183 | AR160: 225.1484183 | AS160: 225.1484183 | AT160: 225.1484183 | AU160: 225.1484183 | AV160: 225.1484183 | AW160: 225.1484183 | AX160: 225.1484183 | AY160: 225.1484183 | AZ160: 225.1484183 | BA160: 225.1484183 | BB160: 225.1484183 | BC160: 225.1484183 | BD160: 225.1484183 | BE160: 225.1484183 | BF160: 225.1484183 | BG160: 225.1484183 | BH160: 225.1484183 | BI160: 225.1484183 | BJ160: 225.1484183 | BK160: 225.1484183 | BL160: 225.1484183
B161: CAPACITY PRICE | C161: ="["&B46&"/kW-month]" -> [XXX/kW-month] | G161: =+$H$123*G156 -> 0 | H161: 0 | I161: 0 | J161: 0 | K161: 0 | L161: 0 | M161: 0 | N161: 0 | O161: 0 | P161: 0 | Q161: 0 | R161: 0 | S161: 0 | T161: 0 | U161: 0 | V161: 0 | W161: 0 | X161: 0 | Y161: 0 | Z161: 0 | AA161: =+$H$123*AA156 -> 0 | AB161: 0 | AC161: 0 | AD161: 0 | AE161: 0 | AF161: 0 | AG161: 0 | AH161: 0 | AI161: 0 | AJ161: 0 | AK161: 0 | AL161: 0 | AM161: 0 | AN161: 0 | AO161: 0 | AP161: 0 | AQ161: 0 | AR161: 0 | AS161: 0 | AT161: 0 | AU161: 0 | AV161: 0 | AW161: 0 | AX161: 0 | AY161: 0 | AZ161: 0 | BA161: 0 | BB161: 0 | BC161: 0 | BD161: 0 | BE161: 0 | BF161: 0 | BG161: 0 | BH161: 0 | BI161: 0 | BJ161: 0 | BK161: 0 | BL161: 0
B163: CAPACITY
B164: Nominal Gross Capacity | C164: [MW] | G164: =+$H$101*G153 -> 19.53125 | H164: =+$H$101*H153 -> 19.53125 | I164: 19.53125 | J164: 19.53125 | K164: 19.53125 | L164: 19.53125 | M164: 19.53125 | N164: 19.53125 | O164: 19.53125 | P164: 19.53125 | Q164: 19.53125 | R164: 19.53125 | S164: 19.53125 | T164: 19.53125 | U164: 19.53125 | V164: 19.53125 | W164: 19.53125 | X164: 19.53125 | Y164: 19.53125 | Z164: 19.53125 | AA164: 19.53125 | AB164: 19.53125 | AC164: 19.53125 | AD164: 19.53125 | AE164: 19.53125 | AF164: 0 | AG164: 0 | AH164: 0 | AI164: 0 | AJ164: 0 | AK164: 0 | AL164: 0 | AM164: 0 | AN164: 0 | AO164: 0 | AP164: 0 | AQ164: 0 | AR164: 0 | AS164: 0 | AT164: 0 | AU164: 0 | AV164: 0 | AW164: 0 | AX164: 0 | AY164: 0 | AZ164: 0 | BA164: 0 | BB164: 0 | BC164: 0 | BD164: 0 | BE164: 0 | BF164: 0 | BG164: 0 | BH164: 0 | BI164: 0 | BJ164: 0 | BK164: 0 | BL164: 0
B165: Acummulative Degradation Factor | C165: [%] | G165: 1 | H165: =+(1-H104/100)*G165*H153 -> 0.997 | I165: =(1-$H$105/100)*H165*I153 -> 0.994009 | J165: =(1-$H$105/100)*I165*J153 -> 0.991026973 | K165: =(1-$H$105/100)*J165*K153 -> 0.9880538921 | L165: =(1-$H$105/100)*K165*L153 -> 0.9850897304 | M165: 0.9821344612 | N165: 0.9791880578 | O165: 0.9762504937 | P165: 0.9733217422 | Q165: 0.9704017769 | R165: 0.9674905716 | S165: 0.9645880999 | T165: 0.9616943356 | U165: 0.9588092526 | V165: 0.9559328248 | W165: 0.9530650264 | X165: 0.9502058313 | Y165: 0.9473552138 | Z165: 0.9445131482 | AA165: 0.9416796087 | AB165: 0.9388545699 | AC165: 0.9360380062 | AD165: 0.9332298922 | AE165: 0.9304302025 | AF165: 0 | AG165: 0 | AH165: 0 | AI165: 0 | AJ165: 0 | AK165: 0 | AL165: 0 | AM165: 0 | AN165: 0 | AO165: 0 | AP165: 0 | AQ165: 0 | AR165: 0 | AS165: 0 | AT165: 0 | AU165: 0 | AV165: 0 | AW165: 0 | AX165: 0 | AY165: 0 | AZ165: 0 | BA165: 0 | BB165: 0 | BC165: 0 | BD165: 0 | BE165: 0 | BF165: 0 | BG165: 0 | BH165: 0 | BI165: 0 | BJ165: 0 | BK165: 0 | BL165: 0
B166: Effective Gross Capacity | C166: [MW] | G166: =+G164*G165 -> 19.53125 | H166: 19.47265625 | I166: =+I164*I165 -> 19.41423828 | J166: 19.35599557 | K166: 19.29792758 | L166: 19.2400338 | M166: 19.1823137 | N166: 19.12476675 | O166: 19.06739245 | P166: 19.01019028 | Q166: 18.95315971 | R166: 18.89630023 | S166: 18.83961133 | T166: 18.78309249 | U166: =+U164*U165 -> 18.72674321 | V166: 18.67056299 | W166: 18.6145513 | X166: 18.55870764 | Y166: 18.50303152 | Z166: 18.44752242 | AA166: =+AA164*AA165 -> 18.39217986 | AB166: 18.33700332 | AC166: 18.28199231 | AD166: 18.22714633 | AE166: 18.17246489 | AF166: 0 | AG166: 0 | AH166: 0 | AI166: 0 | AJ166: 0 | AK166: 0 | AL166: 0 | AM166: 0 | AN166: 0 | AO166: 0 | AP166: 0 | AQ166: 0 | AR166: 0 | AS166: 0 | AT166: 0 | AU166: 0 | AV166: 0 | AW166: 0 | AX166: 0 | AY166: 0 | AZ166: 0 | BA166: 0 | BB166: 0 | BC166: 0 | BD166: 0 | BE166: 0 | BF166: 0 | BG166: 0 | BH166: 0 | BI166: 0 | BJ166: 0 | BK166: 0 | BL166: 0
B167: Internal consumption | C167: [%] | G167: =+$H$103/100 -> 0.07 | H167: 0.07 | I167: 0.07 | J167: 0.07 | K167: 0.07 | L167: 0.07 | M167: 0.07 | N167: 0.07 | O167: 0.07 | P167: 0.07 | Q167: 0.07 | R167: 0.07 | S167: 0.07 | T167: 0.07 | U167: 0.07 | V167: 0.07 | W167: 0.07 | X167: 0.07 | Y167: 0.07 | Z167: 0.07 | AA167: 0.07 | AB167: 0.07 | AC167: 0.07 | AD167: 0.07 | AE167: 0.07 | AF167: 0.07 | AG167: 0.07 | AH167: 0.07 | AI167: 0.07 | AJ167: 0.07 | AK167: 0.07 | AL167: 0.07 | AM167: 0.07 | AN167: 0.07 | AO167: 0.07 | AP167: 0.07 | AQ167: 0.07 | AR167: 0.07 | AS167: 0.07 | AT167: 0.07 | AU167: 0.07 | AV167: 0.07 | AW167: 0.07 | AX167: 0.07 | AY167: 0.07 | AZ167: 0.07 | BA167: 0.07 | BB167: 0.07 | BC167: 0.07 | BD167: 0.07 | BE167: 0.07 | BF167: 0.07 | BG167: 0.07 | BH167: 0.07 | BI167: 0.07 | BJ167: 0.07 | BK167: 0.07 | BL167: 0.07
B168: Effective Net Capacity | C168: [MW] | G168: =+G166*(1-G$167) -> 18.1640625 | H168: 18.10957031 | I168: 18.0552416 | J168: 18.00107588 | K168: 17.94707265 | L168: 17.89323143 | M168: 17.83955174 | N168: 17.78603308 | O168: 17.73267498 | P168: 17.67947696 | Q168: 17.62643853 | R168: 17.57355921 | S168: 17.52083853 | T168: 17.46827602 | U168: 17.41587119 | V168: 17.36362358 | W168: 17.31153271 | X168: 17.25959811 | Y168: 17.20781931 | Z168: 17.15619586 | AA168: =+AA166*(1-AA$167) -> 17.10472727 | AB168: 17.05341309 | AC168: 17.00225285 | AD168: 16.95124609 | AE168: 16.90039235 | AF168: 0 | AG168: 0 | AH168: 0 | AI168: 0 | AJ168: 0 | AK168: 0 | AL168: 0 | AM168: 0 | AN168: 0 | AO168: 0 | AP168: 0 | AQ168: 0 | AR168: 0 | AS168: 0 | AT168: 0 | AU168: 0 | AV168: 0 | AW168: 0 | AX168: 0 | AY168: 0 | AZ168: 0 | BA168: 0 | BB168: 0 | BC168: 0 | BD168: 0 | BE168: 0 | BF168: 0 | BG168: 0 | BH168: 0 | BI168: 0 | BJ168: 0 | BK168: 0 | BL168: 0
B175: Hours in Year | G175: 8760 | H175: 8760 | I175: 8760 | J175: 8760 | K175: 8760 | L175: 8760 | M175: 8760 | N175: 8760 | O175: 8760 | P175: 8760 | Q175: 8760 | R175: 8760 | S175: 8760 | T175: 8760 | U175: 8760 | V175: 8760 | W175: 8760 | X175: 8760 | Y175: 8760 | Z175: 8760 | AA175: 8760 | AB175: 8760 | AC175: 8760 | AD175: 8760 | AE175: 8760 | AF175: 8760 | AG175: 8760 | AH175: 8760 | AI175: 8760 | AJ175: 8760 | AK175: 8760 | AL175: 8760 | AM175: 8760 | AN175: 8760 | AO175: 8760 | AP175: 8760 | AQ175: 8760 | AR175: 8760 | AS175: 8760 | AT175: 8760 | AU175: 8760 | AV175: 8760 | AW175: 8760 | AX175: 8760 | AY175: 8760 | AZ175: 8760 | BA175: 8760 | BB175: 8760 | BC175: 8760 | BD175: 8760 | BE175: 8760 | BF175: 8760 | BG175: 8760 | BH175: 8760 | BI175: 8760 | BJ175: 8760 | BK175: 8760 | BL175: 8760
B176: DISPATCH
B177: Capacity Factor | C177: [%] | G177: =+$H$108/100*G153 -> 0.9 | H177: =+$H$108/100*H153 -> 0.9 | I177: 0.9 | J177: 0.9 | K177: 0.9 | L177: 0.9 | M177: 0.9 | N177: 0.9 | O177: 0.9 | P177: 0.9 | Q177: 0.9 | R177: 0.9 | S177: 0.9 | T177: 0.9 | U177: 0.9 | V177: 0.9 | W177: 0.9 | X177: 0.9 | Y177: 0.9 | Z177: 0.9 | AA177: 0.9 | AB177: 0.9 | AC177: 0.9 | AD177: 0.9 | AE177: 0.9 | AF177: 0 | AG177: 0 | AH177: 0 | AI177: 0 | AJ177: 0 | AK177: 0 | AL177: 0 | AM177: 0 | AN177: 0 | AO177: 0 | AP177: 0 | AQ177: 0 | AR177: 0 | AS177: 0 | AT177: 0 | AU177: 0 | AV177: 0 | AW177: 0 | AX177: 0 | AY177: 0 | AZ177: 0 | BA177: 0 | BB177: 0 | BC177: 0 | BD177: 0 | BE177: 0 | BF177: 0 | BG177: 0 | BH177: 0 | BI177: 0 | BJ177: 0 | BK177: 0 | BL177: 0
B178: Energy production (gross) | C178: [GWh] | G178: =+G166*G175*G177/1000 -> 153.984375 | H178: =+H166*H175*H177/1000 -> 153.5224219 | I178: 153.0618546 | J178: 152.602669 | K178: 152.144861 | L178: 151.6884265 | M178: 151.2333612 | N178: 150.7796611 | O178: 150.3273221 | P178: 149.8763401 | Q178: 149.4267111 | R178: 148.978431 | S178: 148.5314957 | T178: 148.0859012 | U178: 147.6416435 | V178: 147.1987186 | W178: 146.7571224 | X178: 146.3168511 | Y178: 145.8779005 | Z178: 145.4402668 | AA178: =+AA166*AA175*AA177/1000 -> 145.003946 | AB178: 144.5689342 | AC178: 144.1352274 | AD178: 143.7028217 | AE178: 143.2717132 | AF178: 0 | AG178: 0 | AH178: 0 | AI178: 0 | AJ178: 0 | AK178: 0 | AL178: 0 | AM178: 0 | AN178: 0 | AO178: 0 | AP178: 0 | AQ178: 0 | AR178: 0 | AS178: 0 | AT178: 0 | AU178: 0 | AV178: 0 | AW178: 0 | AX178: 0 | AY178: 0 | AZ178: 0 | BA178: 0 | BB178: 0 | BC178: 0 | BD178: 0 | BE178: 0 | BF178: 0 | BG178: 0 | BH178: 0 | BI178: 0 | BJ178: 0 | BK178: 0 | BL178: 0
B179: Energy production (net) | C179: [GWh] | G179: =+G168*G175*G177/1000 -> 143.2054687 | H179: =+H168*H175*H177/1000 -> 142.7758523 | I179: 142.3475248 | J179: 141.9204822 | K179: 141.4947208 | L179: 141.0702366 | M179: 140.6470259 | N179: 140.2250848 | O179: 139.8044096 | P179: 139.3849963 | Q179: 138.9668413 | R179: 138.5499408 | S179: 138.134291 | T179: 137.7198881 | U179: 137.3067285 | V179: 136.8948083 | W179: 136.4841238 | X179: 136.0746715 | Y179: 135.6664475 | Z179: 135.2594481 | AA179: =+AA168*AA175*AA177/1000 -> 134.8536698 | AB179: 134.4491088 | AC179: 134.0457614 | AD179: 133.6436242 | AE179: 133.2426933 | AF179: 0 | AG179: 0 | AH179: 0 | AI179: 0 | AJ179: 0 | AK179: 0 | AL179: 0 | AM179: 0 | AN179: 0 | AO179: 0 | AP179: 0 | AQ179: 0 | AR179: 0 | AS179: 0 | AT179: 0 | AU179: 0 | AV179: 0 | AW179: 0 | AX179: 0 | AY179: 0 | AZ179: 0 | BA179: 0 | BB179: 0 | BC179: 0 | BD179: 0 | BE179: 0 | BF179: 0 | BG179: 0 | BH179: 0 | BI179: 0 | BJ179: 0 | BK179: 0 | BL179: 0
B181: HEAT RATE (Year average) | C181: =+"["&$C$129&"/MWh]" -> [MWh/MWh] | G181: =+$H$102*(1+$H$104/100)*G153 -> 2.786111111 | H181: =+$H$102*(1+$H$104/100)*H153 -> 2.786111111 | I181: =+$H$102*(1+$H$104/100)*I153 -> 2.786111111 | J181: 2.786111111 | K181: 2.786111111 | L181: 2.786111111 | M181: 2.786111111 | N181: 2.786111111 | O181: 2.786111111 | P181: 2.786111111 | Q181: 2.786111111 | R181: 2.786111111 | S181: 2.786111111 | T181: 2.786111111 | U181: 2.786111111 | V181: 2.786111111 | W181: 2.786111111 | X181: 2.786111111 | Y181: 2.786111111 | Z181: 2.786111111 | AA181: 2.786111111 | AB181: 2.786111111 | AC181: 2.786111111 | AD181: 2.786111111 | AE181: 2.786111111 | AF181: 0 | AG181: 0 | AH181: 0 | AI181: 0 | AJ181: 0 | AK181: 0 | AL181: 0 | AM181: 0 | AN181: 0 | AO181: 0 | AP181: 0 | AQ181: 0 | AR181: 0 | AS181: 0 | AT181: 0 | AU181: 0 | AV181: 0 | AW181: 0 | AX181: 0 | AY181: 0 | AZ181: 0 | BA181: 0 | BB181: 0 | BC181: 0 | BD181: 0 | BE181: 0 | BF181: 0 | BG181: 0 | BH181: 0 | BI181: 0 | BJ181: 0 | BK181: 0 | BL181: 0
B182: FUEL CONSUMPTION | C182: =+"[10^6 "&$C$129&"]" -> [10^6 MWh] | G182: =+G178*1000*G181/1000000 -> 0.4290175781 | H182: =+H178*1000*H181/1000000 -> 0.4277305254 | I182: 0.4264473338 | J182: 0.4251679918 | K182: 0.4238924878 | L182: 0.4226208104 | M182: 0.4213529479 | N182: 0.4200888891 | O182: 0.4188286224 | P182: 0.4175721366 | Q182: 0.4163194202 | R182: 0.4150704619 | S182: 0.4138252505 | T182: 0.4125837748 | U182: 0.4113460234 | V182: 0.4101119854 | W182: 0.4088816494 | X182: 0.4076550045 | Y182: 0.4064320394 | Z182: 0.4052127433 | AA182: =+AA178*1000*AA181/1000000 -> 0.4039971051 | AB182: 0.4027851138 | AC182: 0.4015767584 | AD182: 0.4003720282 | AE182: 0.3991709121 | AF182: 0 | AG182: 0 | AH182: 0 | AI182: 0 | AJ182: 0 | AK182: 0 | AL182: 0 | AM182: 0 | AN182: 0 | AO182: 0 | AP182: 0 | AQ182: 0 | AR182: 0 | AS182: 0 | AT182: 0 | AU182: 0 | AV182: 0 | AW182: 0 | AX182: 0 | AY182: 0 | AZ182: 0 | BA182: 0 | BB182: 0 | BC182: 0 | BD182: 0 | BE182: 0 | BF182: 0 | BG182: 0 | BH182: 0 | BI182: 0 | BJ182: 0 | BK182: 0 | BL182: 0
B184: INCOMES | C184: Project Year # | D184: =E184-1 -> -2 | E184: -1 | F184: 0 | G184: 1 | H184: 2 | I184: 3 | J184: 4 | K184: 5 | L184: 6 | M184: 7 | N184: 8 | O184: 9 | P184: 10 | Q184: 11 | R184: 12 | S184: 13 | T184: 14 | U184: 15 | V184: 16 | W184: 17 | X184: 18 | Y184: 19 | Z184: 20 | AA184: 21 | AB184: 22 | AC184: 23 | AD184: 24 | AE184: 25 | AF184: 26 | AG184: 27 | AH184: 28 | AI184: 29 | AJ184: 30 | AK184: 31 | AL184: 32 | AM184: 33 | AN184: 34 | AO184: 35 | AP184: 36 | AQ184: 37 | AR184: 38 | AS184: 39 | AT184: 40 | AU184: 41 | AV184: 42 | AW184: 43 | AX184: 44 | AY184: 45 | AZ184: 46 | BA184: 47 | BB184: 48 | BC184: 49 | BD184: 50 | BE184: 51 | BF184: 52 | BG184: 53 | BH184: 54 | BI184: 55 | BJ184: 56 | BK184: 57 | BL184: 58
B185: Energy | C185: ="[10^6 "&$B$46&"]" -> [10^6 XXX] | G185: =+G179*G160/1000*$C$141/100 -> 32.24248478 | H185: 32.14575732 | I185: 32.04932005 | J185: 31.95317209 | K185: 31.85731258 | L185: 31.76174064 | M185: 31.66645542 | N185: 31.57145605 | O185: 31.47674168 | P185: 31.38231146 | Q185: 31.28816452 | R185: 31.19430003 | S185: 31.10071713 | T185: 31.00741498 | U185: 30.91439273 | V185: 30.82164955 | W185: 30.7291846 | X185: 30.63699705 | Y185: 30.54508606 | Z185: 30.4534508 | AA185: =+AA179*AA160/1000*$C$141/100 -> 30.36209045 | AB185: 30.27100418 | AC185: 30.18019117 | AD185: 30.08965059 | AE185: 29.99938164 | AF185: 0 | AG185: 0 | AH185: 0 | AI185: 0 | AJ185: 0 | AK185: 0 | AL185: 0 | AM185: 0 | AN185: 0 | AO185: 0 | AP185: 0 | AQ185: 0 | AR185: 0 | AS185: 0 | AT185: 0 | AU185: 0 | AV185: 0 | AW185: 0 | AX185: 0 | AY185: 0 | AZ185: 0 | BA185: 0 | BB185: 0 | BC185: 0 | BD185: 0 | BE185: 0 | BF185: 0 | BG185: 0 | BH185: 0 | BI185: 0 | BJ185: 0 | BK185: 0 | BL185: 0
B186: Capacity | C186: ="[10^6 "&$B$46&"]" -> [10^6 XXX] | G186: =G166*G161*12/1000 -> 0 | H186: =H166*H161*12/1000 -> 0 | I186: 0 | J186: 0 | K186: 0 | L186: 0 | M186: 0 | N186: 0 | O186: 0 | P186: 0 | Q186: 0 | R186: 0 | S186: 0 | T186: 0 | U186: 0 | V186: 0 | W186: 0 | X186: 0 | Y186: 0 | Z186: 0 | AA186: =AA166*AA161*12/1000 -> 0 | AB186: 0 | AC186: 0 | AD186: 0 | AE186: 0 | AF186: 0 | AG186: 0 | AH186: 0 | AI186: 0 | AJ186: 0 | AK186: 0 | AL186: 0 | AM186: 0 | AN186: 0 | AO186: 0 | AP186: 0 | AQ186: 0 | AR186: 0 | AS186: 0 | AT186: 0 | AU186: 0 | AV186: 0 | AW186: 0 | AX186: 0 | AY186: 0 | AZ186: 0 | BA186: 0 | BB186: 0 | BC186: 0 | BD186: 0 | BE186: 0 | BF186: 0 | BG186: 0 | BH186: 0 | BI186: 0 | BJ186: 0 | BK186: 0 | BL186: 0
B187: TOTAL INCOMES | C187: [10^6 XXX] | G187: =+G185+G186 -> 32.24248478 | H187: 32.14575732 | I187: 32.04932005 | J187: 31.95317209 | K187: 31.85731258 | L187: 31.76174064 | M187: 31.66645542 | N187: 31.57145605 | O187: 31.47674168 | P187: 31.38231146 | Q187: 31.28816452 | R187: 31.19430003 | S187: 31.10071713 | T187: 31.00741498 | U187: 30.91439273 | V187: 30.82164955 | W187: 30.7291846 | X187: 30.63699705 | Y187: 30.54508606 | Z187: 30.4534508 | AA187: =+AA185+AA186 -> 30.36209045 | AB187: 30.27100418 | AC187: 30.18019117 | AD187: 30.08965059 | AE187: 29.99938164 | AF187: 0 | AG187: 0 | AH187: 0 | AI187: 0 | AJ187: 0 | AK187: 0 | AL187: 0 | AM187: 0 | AN187: 0 | AO187: 0 | AP187: 0 | AQ187: 0 | AR187: 0 | AS187: 0 | AT187: 0 | AU187: 0 | AV187: 0 | AW187: 0 | AX187: 0 | AY187: 0 | AZ187: 0 | BA187: 0 | BB187: 0 | BC187: 0 | BD187: 0 | BE187: 0 | BF187: 0 | BG187: 0 | BH187: 0 | BI187: 0 | BJ187: 0 | BK187: 0 | BL187: 0
B188: Monomic selling price | C188: ="["&B46&"/MWh]" -> [XXX/MWh] | G188: =IF(G179=0,0,G187/G179*1000) -> 225.1484183 | H188: =IF(H179=0,0,H187/H179*1000) -> 225.1484183 | I188: 225.1484183 | J188: 225.1484183 | K188: 225.1484183 | L188: 225.1484183 | M188: 225.1484183 | N188: 225.1484183 | O188: 225.1484183 | P188: 225.1484183 | Q188: 225.1484183 | R188: 225.1484183 | S188: 225.1484183 | T188: 225.1484183 | U188: 225.1484183 | V188: 225.1484183 | W188: 225.1484183 | X188: 225.1484183 | Y188: 225.1484183 | Z188: 225.1484183 | AA188: 225.1484183 | AB188: 225.1484183 | AC188: 225.1484183 | AD188: 225.1484183 | AE188: 225.1484183 | AF188: 0 | AG188: 0 | AH188: 0 | AI188: 0 | AJ188: 0 | AK188: 0 | AL188: 0 | AM188: 0 | AN188: 0 | AO188: 0 | AP188: 0 | AQ188: 0 | AR188: 0 | AS188: 0 | AT188: 0 | AU188: 0 | AV188: 0 | AW188: 0 | AX188: 0 | AY188: 0 | AZ188: 0 | BA188: 0 | BB188: 0 | BC188: 0 | BD188: 0 | BE188: 0 | BF188: 0 | BG188: 0 | BH188: 0 | BI188: 0 | BJ188: 0 | BK188: 0 | BL188: 0
B190: EXPENDITURES | C190: Project Year # | D190: =E190-1 -> -2 | E190: -1 | F190: 0 | G190: 1 | H190: 2 | I190: 3 | J190: 4 | K190: 5 | L190: 6 | M190: 7 | N190: 8 | O190: 9 | P190: 10 | Q190: 11 | R190: 12 | S190: 13 | T190: 14 | U190: 15 | V190: 16 | W190: 17 | X190: 18 | Y190: 19 | Z190: 20 | AA190: 21 | AB190: 22 | AC190: 23 | AD190: 24 | AE190: 25 | AF190: 26 | AG190: 27 | AH190: 28 | AI190: 29 | AJ190: 30 | AK190: 31 | AL190: 32 | AM190: 33 | AN190: 34 | AO190: 35 | AP190: 36 | AQ190: 37 | AR190: 38 | AS190: 39 | AT190: 40 | AU190: 41 | AV190: 42 | AW190: 43 | AX190: 44 | AY190: 45 | AZ190: 46 | BA190: 47 | BB190: 48 | BC190: 49 | BD190: 50 | BE190: 51 | BF190: 52 | BG190: 53 | BH190: 54 | BI190: 55 | BJ190: 56 | BK190: 57 | BL190: 58
B191: Investment (Equity) | C191: ="[10^6 "&$B$46&"]" -> [10^6 XXX] | D191: =+IF($C$103>=2,$C$102*$C$104/100*$C$107/100,0)*E$156 -> 0 | E191: =+IF($C$103>=2,$C$102*$C$105/100*$C$107/100,$C$102*$C$104/100*$C$107/100)*E$156 -> 0 | F191: =IF($C$103>=2,$C$102*(1-$C$104/100-$C$105/100)*$C$107/100,$C$102*(1-$C$104/100)*$C$107/100)*E$156 -> 0
B192: Investment (Interests-Loan) | C192: [10^6 XXX] | G192: =G251+G253 -> 0 | H192: 0 | I192: 0 | J192: 0 | K192: 0 | L192: 0 | M192: 0 | N192: 0 | O192: 0 | P192: 0 | Q192: 0 | R192: 0 | S192: 0 | T192: 0 | U192: 0 | V192: 0 | W192: 0 | X192: 0 | Y192: 0 | Z192: 0 | AA192: =AA251+AA253 -> 0 | AB192: 0 | AC192: 0 | AD192: 0 | AE192: 0 | AF192: 0 | AG192: 0 | AH192: 0 | AI192: 0 | AJ192: 0 | AK192: 0 | AL192: 0 | AM192: 0 | AN192: 0 | AO192: 0 | AP192: 0 | AQ192: 0 | AR192: 0 | AS192: 0 | AT192: 0 | AU192: 0 | AV192: 0 | AW192: 0 | AX192: 0 | AY192: 0 | AZ192: 0 | BA192: 0 | BB192: 0 | BC192: 0 | BD192: 0 | BE192: 0 | BF192: 0 | BG192: 0 | BH192: 0 | BI192: 0 | BJ192: 0 | BK192: 0 | BL192: 0
B193: Investment (Capital-Loan) | C193: [10^6 XXX] | G193: =G249 -> 0 | H193: 0 | I193: 0 | J193: 0 | K193: 0 | L193: 0 | M193: 0 | N193: 0 | O193: 0 | P193: 0 | Q193: 0 | R193: 0 | S193: 0 | T193: 0 | U193: 0 | V193: 0 | W193: 0 | X193: 0 | Y193: 0 | Z193: 0 | AA193: =AA249 -> 0 | AB193: 0 | AC193: 0 | AD193: 0 | AE193: 0 | AF193: 0 | AG193: 0 | AH193: 0 | AI193: 0 | AJ193: 0 | AK193: 0 | AL193: 0 | AM193: 0 | AN193: 0 | AO193: 0 | AP193: 0 | AQ193: 0 | AR193: 0 | AS193: 0 | AT193: 0 | AU193: 0 | AV193: 0 | AW193: 0 | AX193: 0 | AY193: 0 | AZ193: 0 | BA193: 0 | BB193: 0 | BC193: 0 | BD193: 0 | BE193: 0 | BF193: 0 | BG193: 0 | BH193: 0 | BI193: 0 | BJ193: 0 | BK193: 0 | BL193: 0
B195: Fuel (Variable) | C195: [10^6 XXX] | G195: =+G182*1000000*G158/100/1000000 -> 6.435263672 | H195: =+H182*1000000*H158/100/1000000 -> 6.415957881 | I195: 6.396710007 | J195: 6.377519877 | K195: 6.358387318 | L195: 6.339312156 | M195: 6.320294219 | N195: 6.301333336 | O195: 6.282429336 | P195: 6.263582048 | Q195: 6.244791302 | R195: 6.226056928 | S195: 6.207378758 | T195: 6.188756621 | U195: 6.170190351 | V195: 6.15167978 | W195: 6.133224741 | X195: 6.114825067 | Y195: 6.096480592 | Z195: 6.07819115 | AA195: =+AA182*1000000*AA158/100/1000000 -> 6.059956576 | AB195: 6.041776707 | AC195: 6.023651377 | AD195: 6.005580422 | AE195: 5.987563681 | AF195: 0 | AG195: 0 | AH195: 0 | AI195: 0 | AJ195: 0 | AK195: 0 | AL195: 0 | AM195: 0 | AN195: 0 | AO195: 0 | AP195: 0 | AQ195: 0 | AR195: 0 | AS195: 0 | AT195: 0 | AU195: 0 | AV195: 0 | AW195: 0 | AX195: 0 | AY195: 0 | AZ195: 0 | BA195: 0 | BB195: 0 | BC195: 0 | BD195: 0 | BE195: 0 | BF195: 0 | BG195: 0 | BH195: 0 | BI195: 0 | BJ195: 0 | BK195: 0 | BL195: 0
B196: Other Costs (Variable) | C196: [10^6 XXX] | G196: =(($C$134/100*$C$133+$C$136/100*$C$135+$C$140/100*$C$139)*G$156+((1-$C$134/100)*$C$133+(1-$C$136/100)*$C$135+(1-$C$140/100)*$C$139))*(0*G179/1000+1*G178/1000) -> 0 | H196: 0 | I196: 0 | J196: 0 | K196: 0 | L196: 0 | M196: 0 | N196: 0 | O196: 0 | P196: 0 | Q196: 0 | R196: 0 | S196: 0 | T196: 0 | U196: 0 | V196: 0 | W196: 0 | X196: 0 | Y196: 0 | Z196: 0 | AA196: =(($C$134/100*$C$133+$C$136/100*$C$135+$C$140/100*$C$139)*AA$156+((1-$C$134/100)*$C$133+(1-$C$136/100)*$C$135+(1-$C$140/100)*$C$139))*(0*AA179/1000+1*AA178/1000) -> 0 | AB196: 0 | AC196: 0 | AD196: 0 | AE196: 0 | AF196: 0 | AG196: 0 | AH196: 0 | AI196: 0 | AJ196: 0 | AK196: 0 | AL196: 0 | AM196: 0 | AN196: 0 | AO196: 0 | AP196: 0 | AQ196: 0 | AR196: 0 | AS196: 0 | AT196: 0 | AU196: 0 | AV196: 0 | AW196: 0 | AX196: 0 | AY196: 0 | AZ196: 0 | BA196: 0 | BB196: 0 | BC196: 0 | BD196: 0 | BE196: 0 | BF196: 0 | BG196: 0 | BH196: 0 | BI196: 0 | BJ196: 0 | BK196: 0 | BL196: 0
B197: Other Costs (Fixed) | C197: [10^6 XXX] | G197: =(($C$138/100*$C$137)*G$156+((1-$C$138/100)*$C$137))*G$164/1000 -> 5.2734375 | H197: 5.2734375 | I197: 5.2734375 | J197: 5.2734375 | K197: 5.2734375 | L197: 5.2734375 | M197: 5.2734375 | N197: 5.2734375 | O197: 5.2734375 | P197: 5.2734375 | Q197: 5.2734375 | R197: 5.2734375 | S197: 5.2734375 | T197: 5.2734375 | U197: 5.2734375 | V197: 5.2734375 | W197: 5.2734375 | X197: 5.2734375 | Y197: 5.2734375 | Z197: 5.2734375 | AA197: 5.2734375 | AB197: 5.2734375 | AC197: 5.2734375 | AD197: 5.2734375 | AE197: 5.2734375 | AF197: 0 | AG197: 0 | AH197: 0 | AI197: 0 | AJ197: 0 | AK197: 0 | AL197: 0 | AM197: 0 | AN197: 0 | AO197: 0 | AP197: 0 | AQ197: 0 | AR197: 0 | AS197: 0 | AT197: 0 | AU197: 0 | AV197: 0 | AW197: 0 | AX197: 0 | AY197: 0 | AZ197: 0 | BA197: 0 | BB197: 0 | BC197: 0 | BD197: 0 | BE197: 0 | BF197: 0 | BG197: 0 | BH197: 0 | BI197: 0 | BJ197: 0 | BK197: 0 | BL197: 0
B198: Total EXPENDITURES | C198: [10^6 XXX] | D198: =+SUM(D191:D196) -> 0 | E198: =+SUM(E191:E196) -> 0 | F198: =+SUM(F191:F196) -> 0 | G198: =+SUM(G191:G197) -> 11.70870117 | H198: 11.68939538 | I198: 11.67014751 | J198: 11.65095738 | K198: 11.63182482 | L198: 11.61274966 | M198: 11.59373172 | N198: 11.57477084 | O198: 11.55586684 | P198: 11.53701955 | Q198: 11.5182288 | R198: 11.49949443 | S198: 11.48081626 | T198: 11.46219412 | U198: 11.44362785 | V198: 11.42511728 | W198: 11.40666224 | X198: 11.38826257 | Y198: 11.36991809 | Z198: 11.35162865 | AA198: =+SUM(AA191:AA197) -> 11.33339408 | AB198: 11.31521421 | AC198: 11.29708888 | AD198: 11.27901792 | AE198: 11.26100118 | AF198: 0 | AG198: 0 | AH198: 0 | AI198: 0 | AJ198: 0 | AK198: 0 | AL198: 0 | AM198: 0 | AN198: 0 | AO198: 0 | AP198: 0 | AQ198: 0 | AR198: 0 | AS198: 0 | AT198: 0 | AU198: 0 | AV198: 0 | AW198: 0 | AX198: 0 | AY198: 0 | AZ198: 0 | BA198: 0 | BB198: 0 | BC198: 0 | BD198: 0 | BE198: 0 | BF198: 0 | BG198: 0 | BH198: 0 | BI198: 0 | BJ198: 0 | BK198: 0 | BL198: 0
B200: ="CASH FLOW ["&$C$107&"% EQTY]" -> CASH FLOW [0% EQTY] | C200: Project Year # | D200: =E200-1 -> -2 | E200: -1 | F200: 0 | G200: 1 | H200: 2 | I200: 3 | J200: 4 | K200: 5 | L200: 6 | M200: 7 | N200: 8 | O200: 9 | P200: 10 | Q200: 11 | R200: 12 | S200: 13 | T200: 14 | U200: 15 | V200: 16 | W200: 17 | X200: 18 | Y200: 19 | Z200: 20 | AA200: 21 | AB200: 22 | AC200: 23 | AD200: 24 | AE200: 25 | AF200: 26 | AG200: 27 | AH200: 28 | AI200: 29 | AJ200: 30 | AK200: 31 | AL200: 32 | AM200: 33 | AN200: 34 | AO200: 35 | AP200: 36 | AQ200: 37 | AR200: 38 | AS200: 39 | AT200: 40 | AU200: 41 | AV200: 42 | AW200: 43 | AX200: 44 | AY200: 45 | AZ200: 46 | BA200: 47 | BB200: 48 | BC200: 49 | BD200: 50 | BE200: 51 | BF200: 52 | BG200: 53 | BH200: 54 | BI200: 55 | BJ200: 56 | BK200: 57 | BL200: 58
B201: TOTAL INCOMES | C201: ="[10^6 "&$B$46&"]" -> [10^6 XXX] | G201: =+G187 -> 32.24248478 | H201: 32.14575732 | I201: 32.04932005 | J201: 31.95317209 | K201: 31.85731258 | L201: 31.76174064 | M201: 31.66645542 | N201: 31.57145605 | O201: 31.47674168 | P201: 31.38231146 | Q201: 31.28816452 | R201: 31.19430003 | S201: 31.10071713 | T201: 31.00741498 | U201: 30.91439273 | V201: 30.82164955 | W201: 30.7291846 | X201: 30.63699705 | Y201: 30.54508606 | Z201: 30.4534508 | AA201: =+AA187 -> 30.36209045 | AB201: 30.27100418 | AC201: 30.18019117 | AD201: 30.08965059 | AE201: 29.99938164 | AF201: 0 | AG201: 0 | AH201: 0 | AI201: 0 | AJ201: 0 | AK201: 0 | AL201: 0 | AM201: 0 | AN201: 0 | AO201: 0 | AP201: 0 | AQ201: 0 | AR201: 0 | AS201: 0 | AT201: 0 | AU201: 0 | AV201: 0 | AW201: 0 | AX201: 0 | AY201: 0 | AZ201: 0 | BA201: 0 | BB201: 0 | BC201: 0 | BD201: 0 | BE201: 0 | BF201: 0 | BG201: 0 | BH201: 0 | BI201: 0 | BJ201: 0 | BK201: 0 | BL201: 0
B202: TOTAL EXPENDITURES | C202: [10^6 XXX] | D202: =+D198 -> 0 | E202: 0 | F202: 0 | G202: 11.70870117 | H202: 11.68939538 | I202: 11.67014751 | J202: 11.65095738 | K202: 11.63182482 | L202: 11.61274966 | M202: 11.59373172 | N202: 11.57477084 | O202: 11.55586684 | P202: 11.53701955 | Q202: 11.5182288 | R202: 11.49949443 | S202: 11.48081626 | T202: 11.46219412 | U202: 11.44362785 | V202: 11.42511728 | W202: 11.40666224 | X202: 11.38826257 | Y202: 11.36991809 | Z202: 11.35162865 | AA202: =+AA198 -> 11.33339408 | AB202: 11.31521421 | AC202: 11.29708888 | AD202: 11.27901792 | AE202: 11.26100118 | AF202: 0 | AG202: 0 | AH202: 0 | AI202: 0 | AJ202: 0 | AK202: 0 | AL202: 0 | AM202: 0 | AN202: 0 | AO202: 0 | AP202: 0 | AQ202: 0 | AR202: 0 | AS202: 0 | AT202: 0 | AU202: 0 | AV202: 0 | AW202: 0 | AX202: 0 | AY202: 0 | AZ202: 0 | BA202: 0 | BB202: 0 | BC202: 0 | BD202: 0 | BE202: 0 | BF202: 0 | BG202: 0 | BH202: 0 | BI202: 0 | BJ202: 0 | BK202: 0 | BL202: 0
B203: CASH FLOW BEFORE TAXES | C203: [10^6 XXX] | D203: =D201-D202 -> 0 | E203: 0 | F203: 0 | G203: 20.53378361 | H203: 20.45636194 | I203: 20.37917254 | J203: 20.30221471 | K203: 20.22548776 | L203: 20.14899098 | M203: 20.0727237 | N203: 19.99668521 | O203: 19.92087484 | P203: 19.84529191 | Q203: 19.76993572 | R203: 19.6948056 | S203: 19.61990087 | T203: 19.54522086 | U203: 19.47076488 | V203: 19.39653227 | W203: 19.32252236 | X203: 19.24873448 | Y203: 19.17516797 | Z203: 19.10182215 | AA203: =AA201-AA202 -> 19.02869637 | AB203: 18.95578997 | AC203: 18.88310229 | AD203: 18.81063267 | AE203: 18.73838046 | AF203: 0 | AG203: 0 | AH203: 0 | AI203: 0 | AJ203: 0 | AK203: 0 | AL203: 0 | AM203: 0 | AN203: 0 | AO203: 0 | AP203: 0 | AQ203: 0 | AR203: 0 | AS203: 0 | AT203: 0 | AU203: 0 | AV203: 0 | AW203: 0 | AX203: 0 | AY203: 0 | AZ203: 0 | BA203: 0 | BB203: 0 | BC203: 0 | BD203: 0 | BE203: 0 | BF203: 0 | BG203: 0 | BH203: 0 | BI203: 0 | BJ203: 0 | BK203: 0 | BL203: 0
B204: TAXES | C204: [10^6 XXX] | D204: =+D230*$C$107/100 -> 0 | E204: =+E230*$C$107/100 -> 0 | F204: =+F230*$C$107/100 -> 0 | G204: =-G246+G230 -> 0 | H204: 0 | I204: 0 | J204: 0 | K204: 0 | L204: 0 | M204: 0 | N204: 0 | O204: 0 | P204: 0 | Q204: 0 | R204: 0 | S204: 0 | T204: 0 | U204: 0 | V204: 0 | W204: 0 | X204: 0 | Y204: 0 | Z204: 0 | AA204: =-AA246+AA230 -> 0 | AB204: 0 | AC204: 0 | AD204: 0 | AE204: 0 | AF204: 0 | AG204: 0 | AH204: 0 | AI204: 0 | AJ204: 0 | AK204: 0 | AL204: 0 | AM204: 0 | AN204: 0 | AO204: 0 | AP204: 0 | AQ204: 0 | AR204: 0 | AS204: 0 | AT204: 0 | AU204: 0 | AV204: 0 | AW204: 0 | AX204: 0 | AY204: 0 | AZ204: 0 | BA204: 0 | BB204: 0 | BC204: 0 | BD204: 0 | BE204: 0 | BF204: 0 | BG204: 0 | BH204: 0 | BI204: 0 | BJ204: 0 | BK204: 0 | BL204: 0
B205: ="NET CASH FLOW ["&$C$107&"% EQTY]" -> NET CASH FLOW [0% EQTY] | C205: [10^6 XXX] | D205: =+D203+D204 -> 0 | E205: 0 | F205: 0 | G205: 20.53378361 | H205: 20.45636194 | I205: 20.37917254 | J205: 20.30221471 | K205: 20.22548776 | L205: 20.14899098 | M205: 20.0727237 | N205: 19.99668521 | O205: 19.92087484 | P205: 19.84529191 | Q205: 19.76993572 | R205: 19.6948056 | S205: 19.61990087 | T205: 19.54522086 | U205: 19.47076488 | V205: 19.39653227 | W205: 19.32252236 | X205: 19.24873448 | Y205: 19.17516797 | Z205: 19.10182215 | AA205: =+AA203+AA204 -> 19.02869637 | AB205: 18.95578997 | AC205: 18.88310229 | AD205: 18.81063267 | AE205: 18.73838046 | AF205: 0 | AG205: 0 | AH205: 0 | AI205: 0 | AJ205: 0 | AK205: 0 | AL205: 0 | AM205: 0 | AN205: 0 | AO205: 0 | AP205: 0 | AQ205: 0 | AR205: 0 | AS205: 0 | AT205: 0 | AU205: 0 | AV205: 0 | AW205: 0 | AX205: 0 | AY205: 0 | AZ205: 0 | BA205: 0 | BB205: 0 | BC205: 0 | BD205: 0 | BE205: 0 | BF205: 0 | BG205: 0 | BH205: 0 | BI205: 0 | BJ205: 0 | BK205: 0 | BL205: 0
B207: CASH FLOW FOR PRIVATE FUNDS | C207: Project Year # | D207: -2 | E207: -1 | F207: 0 | G207: 1 | H207: 2 | I207: 3 | J207: 4 | K207: 5 | L207: 6 | M207: 7 | N207: 8 | O207: 9 | P207: 10 | Q207: 11 | R207: 12 | S207: 13 | T207: 14 | U207: 15 | V207: 16 | W207: 17 | X207: 18 | Y207: 19 | Z207: 20 | AA207: 21 | AB207: 22 | AC207: 23 | AD207: 24 | AE207: 25 | AF207: 26 | AG207: 27 | AH207: 28 | AI207: 29 | AJ207: 30 | AK207: 31 | AL207: 32 | AM207: 33 | AN207: 34 | AO207: 35 | AP207: 36 | AQ207: 37 | AR207: 38 | AS207: 39 | AT207: 40 | AU207: 41 | AV207: 42 | AW207: 43 | AX207: 44 | AY207: 45 | AZ207: 46 | BA207: 47 | BB207: 48 | BC207: 49 | BD207: 50 | BE207: 51 | BF207: 52 | BG207: 53 | BH207: 54 | BI207: 55 | BJ207: 56 | BK207: 57 | BL207: 58
B208: TOTAL INCOMES | C208: ="[10^6 "&$B$46&"]" -> [10^6 XXX] | G208: =G187 -> 32.24248478 | H208: 32.14575732 | I208: 32.04932005 | J208: 31.95317209 | K208: 31.85731258 | L208: 31.76174064 | M208: 31.66645542 | N208: 31.57145605 | O208: 31.47674168 | P208: 31.38231146 | Q208: 31.28816452 | R208: 31.19430003 | S208: 31.10071713 | T208: 31.00741498 | U208: 30.91439273 | V208: 30.82164955 | W208: 30.7291846 | X208: 30.63699705 | Y208: 30.54508606 | Z208: 30.4534508 | AA208: =AA187 -> 30.36209045 | AB208: 30.27100418 | AC208: 30.18019117 | AD208: 30.08965059 | AE208: 29.99938164 | AF208: 0 | AG208: 0 | AH208: 0 | AI208: 0 | AJ208: 0 | AK208: 0 | AL208: 0 | AM208: 0 | AN208: 0 | AO208: 0 | AP208: 0 | AQ208: 0 | AR208: 0 | AS208: 0 | AT208: 0 | AU208: 0 | AV208: 0 | AW208: 0 | AX208: 0 | AY208: 0 | AZ208: 0 | BA208: 0 | BB208: 0 | BC208: 0 | BD208: 0 | BE208: 0 | BF208: 0 | BG208: 0 | BH208: 0 | BI208: 0 | BJ208: 0 | BK208: 0 | BL208: 0
B209: TOTAL EXPENDITURES | C209: [10^6 XXX] | D209: =+IF($C$103>=2,$C$102*$C$104/100,0)*E$156 -> 8.80859375 | E209: =+IF($C$103>=2,$C$102*$C$105/100,$C$102*$C$104/100)*E$156 -> 35.234375 | F209: =IF($C$103>=2,$C$102*(1-$C$104/100-$C$105/100),$C$102*(1-$C$104/100))*E$156 -> 44.04296875 | G209: =(G194+G195+G196+G197) -> 11.70870117 | H209: 11.68939538 | I209: 11.67014751 | J209: 11.65095738 | K209: 11.63182482 | L209: 11.61274966 | M209: 11.59373172 | N209: 11.57477084 | O209: 11.55586684 | P209: 11.53701955 | Q209: 11.5182288 | R209: 11.49949443 | S209: 11.48081626 | T209: 11.46219412 | U209: 11.44362785 | V209: 11.42511728 | W209: 11.40666224 | X209: 11.38826257 | Y209: 11.36991809 | Z209: 11.35162865 | AA209: =(AA194+AA195+AA196+AA197) -> 11.33339408 | AB209: 11.31521421 | AC209: 11.29708888 | AD209: 11.27901792 | AE209: 11.26100118 | AF209: 0 | AG209: 0 | AH209: 0 | AI209: 0 | AJ209: 0 | AK209: 0 | AL209: 0 | AM209: 0 | AN209: 0 | AO209: 0 | AP209: 0 | AQ209: 0 | AR209: 0 | AS209: 0 | AT209: 0 | AU209: 0 | AV209: 0 | AW209: 0 | AX209: 0 | AY209: 0 | AZ209: 0 | BA209: 0 | BB209: 0 | BC209: 0 | BD209: 0 | BE209: 0 | BF209: 0 | BG209: 0 | BH209: 0 | BI209: 0 | BJ209: 0 | BK209: 0 | BL209: 0
B210: CASH FLOW BEFORE TAXES | C210: [10^6 XXX] | D210: =+D208-D209 -> -8.80859375 | E210: -35.234375 | F210: -44.04296875 | G210: 20.53378361 | H210: 20.45636194 | I210: 20.37917254 | J210: 20.30221471 | K210: 20.22548776 | L210: 20.14899098 | M210: 20.0727237 | N210: 19.99668521 | O210: 19.92087484 | P210: 19.84529191 | Q210: 19.76993572 | R210: 19.6948056 | S210: 19.61990087 | T210: 19.54522086 | U210: 19.47076488 | V210: 19.39653227 | W210: 19.32252236 | X210: 19.24873448 | Y210: 19.17516797 | Z210: 19.10182215 | AA210: =+AA208-AA209 -> 19.02869637 | AB210: 18.95578997 | AC210: 18.88310229 | AD210: 18.81063267 | AE210: 18.73838046 | AF210: 0 | AG210: 0 | AH210: 0 | AI210: 0 | AJ210: 0 | AK210: 0 | AL210: 0 | AM210: 0 | AN210: 0 | AO210: 0 | AP210: 0 | AQ210: 0 | AR210: 0 | AS210: 0 | AT210: 0 | AU210: 0 | AV210: 0 | AW210: 0 | AX210: 0 | AY210: 0 | AZ210: 0 | BA210: 0 | BB210: 0 | BC210: 0 | BD210: 0 | BE210: 0 | BF210: 0 | BG210: 0 | BH210: 0 | BI210: 0 | BJ210: 0 | BK210: 0 | BL210: 0
B211: TAXES | C211: [10^6 XXX] | D211: =-D246+D230 -> 0 | E211: 0 | F211: 0 | G211: 0 | H211: 0 | I211: 0 | J211: 0 | K211: 0 | L211: 0 | M211: 0 | N211: 0 | O211: 0 | P211: 0 | Q211: 0 | R211: 0 | S211: 0 | T211: 0 | U211: 0 | V211: 0 | W211: 0 | X211: 0 | Y211: 0 | Z211: 0 | AA211: =-AA246+AA230 -> 0 | AB211: 0 | AC211: 0 | AD211: 0 | AE211: 0 | AF211: 0 | AG211: 0 | AH211: 0 | AI211: 0 | AJ211: 0 | AK211: 0 | AL211: 0 | AM211: 0 | AN211: 0 | AO211: 0 | AP211: 0 | AQ211: 0 | AR211: 0 | AS211: 0 | AT211: 0 | AU211: 0 | AV211: 0 | AW211: 0 | AX211: 0 | AY211: 0 | AZ211: 0 | BA211: 0 | BB211: 0 | BC211: 0 | BD211: 0 | BE211: 0 | BF211: 0 | BG211: 0 | BH211: 0 | BI211: 0 | BJ211: 0 | BK211: 0 | BL211: 0
B212: NET CASH FLOW [PRIVATE] | C212: [10^6 XXX] | D212: =+D210+D211 -> -8.80859375 | E212: -35.234375 | F212: -44.04296875 | G212: 20.53378361 | H212: 20.45636194 | I212: 20.37917254 | J212: 20.30221471 | K212: 20.22548776 | L212: 20.14899098 | M212: 20.0727237 | N212: 19.99668521 | O212: 19.92087484 | P212: 19.84529191 | Q212: 19.76993572 | R212: 19.6948056 | S212: 19.61990087 | T212: 19.54522086 | U212: 19.47076488 | V212: 19.39653227 | W212: 19.32252236 | X212: 19.24873448 | Y212: 19.17516797 | Z212: 19.10182215 | AA212: =+AA210+AA211 -> 19.02869637 | AB212: 18.95578997 | AC212: 18.88310229 | AD212: 18.81063267 | AE212: 18.73838046 | AF212: 0 | AG212: 0 | AH212: 0 | AI212: 0 | AJ212: 0 | AK212: 0 | AL212: 0 | AM212: 0 | AN212: 0 | AO212: 0 | AP212: 0 | AQ212: 0 | AR212: 0 | AS212: 0 | AT212: 0 | AU212: 0 | AV212: 0 | AW212: 0 | AX212: 0 | AY212: 0 | AZ212: 0 | BA212: 0 | BB212: 0 | BC212: 0 | BD212: 0 | BE212: 0 | BF212: 0 | BG212: 0 | BH212: 0 | BI212: 0 | BJ212: 0 | BK212: 0 | BL212: 0
B214: CASH FLOW FOR IRR | C214: Project Year # | D214: =E214-1 -> -2 | E214: -1 | F214: 0 | G214: 1 | H214: 2 | I214: 3 | J214: 4 | K214: 5 | L214: 6 | M214: 7 | N214: 8 | O214: 9 | P214: 10 | Q214: 11 | R214: 12 | S214: 13 | T214: 14 | U214: 15 | V214: 16 | W214: 17 | X214: 18 | Y214: 19 | Z214: 20 | AA214: 21 | AB214: 22 | AC214: 23 | AD214: 24 | AE214: 25 | AF214: 26 | AG214: 27 | AH214: 28 | AI214: 29 | AJ214: 30 | AK214: 31 | AL214: 32 | AM214: 33 | AN214: 34 | AO214: 35 | AP214: 36 | AQ214: 37 | AR214: 38 | AS214: 39 | AT214: 40 | AU214: 41 | AV214: 42 | AW214: 43 | AX214: 44 | AY214: 45 | AZ214: 46 | BA214: 47 | BB214: 48 | BC214: 49 | BD214: 50 | BE214: 51 | BF214: 52 | BG214: 53 | BH214: 54 | BI214: 55 | BJ214: 56 | BK214: 57 | BL214: 58
B215: TOTAL INCOMES | C215: ="[10^6 "&$B$46&"]" -> [10^6 XXX] | G215: =+G187 -> 32.24248478 | H215: 32.14575732 | I215: 32.04932005 | J215: 31.95317209 | K215: 31.85731258 | L215: 31.76174064 | M215: 31.66645542 | N215: 31.57145605 | O215: 31.47674168 | P215: 31.38231146 | Q215: 31.28816452 | R215: 31.19430003 | S215: 31.10071713 | T215: 31.00741498 | U215: 30.91439273 | V215: 30.82164955 | W215: 30.7291846 | X215: 30.63699705 | Y215: 30.54508606 | Z215: 30.4534508 | AA215: =+AA187 -> 30.36209045 | AB215: 30.27100418 | AC215: 30.18019117 | AD215: 30.08965059 | AE215: 29.99938164 | AF215: 0 | AG215: 0 | AH215: 0 | AI215: 0 | AJ215: 0 | AK215: 0 | AL215: 0 | AM215: 0 | AN215: 0 | AO215: 0 | AP215: 0 | AQ215: 0 | AR215: 0 | AS215: 0 | AT215: 0 | AU215: 0 | AV215: 0 | AW215: 0 | AX215: 0 | AY215: 0 | AZ215: 0 | BA215: 0 | BB215: 0 | BC215: 0 | BD215: 0 | BE215: 0 | BF215: 0 | BG215: 0 | BH215: 0 | BI215: 0 | BJ215: 0 | BK215: 0 | BL215: 0
B216: TOTAL EXPENDITURES | C216: [10^6 XXX] | D216: =+IF($C$103>=2,$C$102*$C$104/100,0)*E$156 -> 8.80859375 | E216: =+IF($C$103>=2,$C$102*$C$105/100,$C$102*$C$104/100)*E$156 -> 35.234375 | F216: =IF($C$103>=2,$C$102*(1-$C$104/100-$C$105/100),$C$102*(1-$C$104/100))*E$156 -> 44.04296875 | G216: =(G194+G195+G196+G197) -> 11.70870117 | H216: 11.68939538 | I216: 11.67014751 | J216: 11.65095738 | K216: 11.63182482 | L216: 11.61274966 | M216: 11.59373172 | N216: 11.57477084 | O216: 11.55586684 | P216: 11.53701955 | Q216: 11.5182288 | R216: 11.49949443 | S216: 11.48081626 | T216: 11.46219412 | U216: 11.44362785 | V216: 11.42511728 | W216: 11.40666224 | X216: 11.38826257 | Y216: 11.36991809 | Z216: 11.35162865 | AA216: =(AA194+AA195+AA196+AA197) -> 11.33339408 | AB216: 11.31521421 | AC216: 11.29708888 | AD216: 11.27901792 | AE216: 11.26100118 | AF216: 0 | AG216: 0 | AH216: 0 | AI216: 0 | AJ216: 0 | AK216: 0 | AL216: 0 | AM216: 0 | AN216: 0 | AO216: 0 | AP216: 0 | AQ216: 0 | AR216: 0 | AS216: 0 | AT216: 0 | AU216: 0 | AV216: 0 | AW216: 0 | AX216: 0 | AY216: 0 | AZ216: 0 | BA216: 0 | BB216: 0 | BC216: 0 | BD216: 0 | BE216: 0 | BF216: 0 | BG216: 0 | BH216: 0 | BI216: 0 | BJ216: 0 | BK216: 0 | BL216: 0
B217: CASH FLOW BEFORE TAXES | C217: [10^6 XXX] | D217: =+D215-D216 -> -8.80859375 | E217: -35.234375 | F217: -44.04296875 | G217: 20.53378361 | H217: 20.45636194 | I217: 20.37917254 | J217: 20.30221471 | K217: 20.22548776 | L217: 20.14899098 | M217: 20.0727237 | N217: 19.99668521 | O217: 19.92087484 | P217: 19.84529191 | Q217: 19.76993572 | R217: 19.6948056 | S217: 19.61990087 | T217: 19.54522086 | U217: 19.47076488 | V217: 19.39653227 | W217: 19.32252236 | X217: 19.24873448 | Y217: 19.17516797 | Z217: 19.10182215 | AA217: =+AA215-AA216 -> 19.02869637 | AB217: 18.95578997 | AC217: 18.88310229 | AD217: 18.81063267 | AE217: 18.73838046 | AF217: 0 | AG217: 0 | AH217: 0 | AI217: 0 | AJ217: 0 | AK217: 0 | AL217: 0 | AM217: 0 | AN217: 0 | AO217: 0 | AP217: 0 | AQ217: 0 | AR217: 0 | AS217: 0 | AT217: 0 | AU217: 0 | AV217: 0 | AW217: 0 | AX217: 0 | AY217: 0 | AZ217: 0 | BA217: 0 | BB217: 0 | BC217: 0 | BD217: 0 | BE217: 0 | BF217: 0 | BG217: 0 | BH217: 0 | BI217: 0 | BJ217: 0 | BK217: 0 | BL217: 0
B218: TAXES | C218: [10^6 XXX] | D218: =-D238+D230 -> 0 | E218: 0 | F218: 0 | G218: 0 | H218: 0 | I218: 0 | J218: 0 | K218: 0 | L218: 0 | M218: 0 | N218: 0 | O218: 0 | P218: 0 | Q218: 0 | R218: 0 | S218: 0 | T218: 0 | U218: 0 | V218: 0 | W218: 0 | X218: 0 | Y218: 0 | Z218: 0 | AA218: =-AA238+AA230 -> 0 | AB218: 0 | AC218: 0 | AD218: 0 | AE218: 0 | AF218: 0 | AG218: 0 | AH218: 0 | AI218: 0 | AJ218: 0 | AK218: 0 | AL218: 0 | AM218: 0 | AN218: 0 | AO218: 0 | AP218: 0 | AQ218: 0 | AR218: 0 | AS218: 0 | AT218: 0 | AU218: 0 | AV218: 0 | AW218: 0 | AX218: 0 | AY218: 0 | AZ218: 0 | BA218: 0 | BB218: 0 | BC218: 0 | BD218: 0 | BE218: 0 | BF218: 0 | BG218: 0 | BH218: 0 | BI218: 0 | BJ218: 0 | BK218: 0 | BL218: 0
B219: NET CASH FLOW [100% EQTY] | C219: [10^6 XXX] | D219: =+D217+D218 -> -8.80859375 | E219: -35.234375 | F219: -44.04296875 | G219: 20.53378361 | H219: 20.45636194 | I219: 20.37917254 | J219: 20.30221471 | K219: 20.22548776 | L219: 20.14899098 | M219: 20.0727237 | N219: 19.99668521 | O219: 19.92087484 | P219: 19.84529191 | Q219: 19.76993572 | R219: 19.6948056 | S219: 19.61990087 | T219: 19.54522086 | U219: 19.47076488 | V219: 19.39653227 | W219: 19.32252236 | X219: 19.24873448 | Y219: 19.17516797 | Z219: 19.10182215 | AA219: =+AA217+AA218 -> 19.02869637 | AB219: 18.95578997 | AC219: 18.88310229 | AD219: 18.81063267 | AE219: 18.73838046 | AF219: 0 | AG219: 0 | AH219: 0 | AI219: 0 | AJ219: 0 | AK219: 0 | AL219: 0 | AM219: 0 | AN219: 0 | AO219: 0 | AP219: 0 | AQ219: 0 | AR219: 0 | AS219: 0 | AT219: 0 | AU219: 0 | AV219: 0 | AW219: 0 | AX219: 0 | AY219: 0 | AZ219: 0 | BA219: 0 | BB219: 0 | BC219: 0 | BD219: 0 | BE219: 0 | BF219: 0 | BG219: 0 | BH219: 0 | BI219: 0 | BJ219: 0 | BK219: 0 | BL219: 0
B221: ROE | C221: =IRR(D205:Z205) -> 
B222: PRIVATE RETURN | C222: =IRR(D212:Z212) -> 0.1986389959
B223: PROJECT IRR | C223: =IRR(D219:Z219) -> 0.1986389959
B225: VAT | C225: Project Year # | E225: -1 | F225: 0 | G225: 1 | H225: 2 | I225: 3 | J225: 4 | K225: 5 | L225: 6 | M225: 7 | N225: 8 | O225: 9 | P225: 10 | Q225: 11 | R225: 12 | S225: 13 | T225: 14 | U225: 15 | V225: 16 | W225: 17 | X225: 18 | Y225: 19 | Z225: 20 | AA225: 21 | AB225: 22 | AC225: 23 | AD225: 24 | AE225: 25 | AF225: 26 | AG225: 27 | AH225: 28 | AI225: 29 | AJ225: 30 | AK225: 31 | AL225: 32 | AM225: 33 | AN225: 34 | AO225: 35 | AP225: 36 | AQ225: 37 | AR225: 38 | AS225: 39 | AT225: 40 | AU225: 41 | AV225: 42 | AW225: 43 | AX225: 44 | AY225: 45 | AZ225: 46 | BA225: 47 | BB225: 48 | BC225: 49 | BD225: 50 | BE225: 51 | BF225: 52 | BG225: 53 | BH225: 54 | BI225: 55 | BJ225: 56 | BK225: 57 | BL225: 58
B226: VAT (Sell) | C226: ="[10^6 "&$B$46&"]" -> [10^6 XXX] | D226: =+$C$120*D187/100 -> 0 | E226: 0 | F226: 0 | G226: 0 | H226: 0 | I226: 0 | J226: 0 | K226: 0 | L226: 0 | M226: 0 | N226: 0 | O226: 0 | P226: 0 | Q226: 0 | R226: 0 | S226: 0 | T226: 0 | U226: 0 | V226: 0 | W226: 0 | X226: 0 | Y226: 0 | Z226: 0 | AA226: =+$C$120*AA187/100 -> 0 | AB226: 0 | AC226: 0 | AD226: 0 | AE226: 0 | AF226: 0 | AG226: 0 | AH226: 0 | AI226: 0 | AJ226: 0 | AK226: 0 | AL226: 0 | AM226: 0 | AN226: 0 | AO226: 0 | AP226: 0 | AQ226: 0 | AR226: 0 | AS226: 0 | AT226: 0 | AU226: 0 | AV226: 0 | AW226: 0 | AX226: 0 | AY226: 0 | AZ226: 0 | BA226: 0 | BB226: 0 | BC226: 0 | BD226: 0 | BE226: 0 | BF226: 0 | BG226: 0 | BH226: 0 | BI226: 0 | BJ226: 0 | BK226: 0 | BL226: 0
B227: VAT (Buy) | C227: [10^6 XXX] | D227: =+$C$120/100*D209 -> 0 | E227: 0 | F227: 0 | G227: 0 | H227: 0 | I227: 0 | J227: 0 | K227: 0 | L227: 0 | M227: 0 | N227: 0 | O227: 0 | P227: 0 | Q227: 0 | R227: 0 | S227: 0 | T227: 0 | U227: 0 | V227: 0 | W227: 0 | X227: 0 | Y227: 0 | Z227: 0 | AA227: =+$C$120/100*AA209 -> 0 | AB227: 0 | AC227: 0 | AD227: 0 | AE227: 0 | AF227: 0 | AG227: 0 | AH227: 0 | AI227: 0 | AJ227: 0 | AK227: 0 | AL227: 0 | AM227: 0 | AN227: 0 | AO227: 0 | AP227: 0 | AQ227: 0 | AR227: 0 | AS227: 0 | AT227: 0 | AU227: 0 | AV227: 0 | AW227: 0 | AX227: 0 | AY227: 0 | AZ227: 0 | BA227: 0 | BB227: 0 | BC227: 0 | BD227: 0 | BE227: 0 | BF227: 0 | BG227: 0 | BH227: 0 | BI227: 0 | BJ227: 0 | BK227: 0 | BL227: 0
B228: VAT net | C228: [10^6 XXX] | D228: =+D226-D227 -> 0 | E228: 0 | F228: 0 | G228: 0 | H228: 0 | I228: 0 | J228: 0 | K228: 0 | L228: 0 | M228: 0 | N228: 0 | O228: 0 | P228: 0 | Q228: 0 | R228: 0 | S228: 0 | T228: 0 | U228: 0 | V228: 0 | W228: 0 | X228: 0 | Y228: 0 | Z228: 0 | AA228: =+AA226-AA227 -> 0 | AB228: 0 | AC228: 0 | AD228: 0 | AE228: 0 | AF228: 0 | AG228: 0 | AH228: 0 | AI228: 0 | AJ228: 0 | AK228: 0 | AL228: 0 | AM228: 0 | AN228: 0 | AO228: 0 | AP228: 0 | AQ228: 0 | AR228: 0 | AS228: 0 | AT228: 0 | AU228: 0 | AV228: 0 | AW228: 0 | AX228: 0 | AY228: 0 | AZ228: 0 | BA228: 0 | BB228: 0 | BC228: 0 | BD228: 0 | BE228: 0 | BF228: 0 | BG228: 0 | BH228: 0 | BI228: 0 | BJ228: 0 | BK228: 0 | BL228: 0
B229: VAT accumulative | C229: [10^6 XXX] | D229: =D228 -> 0 | E229: =+E228+D229 -> 0 | F229: 0 | G229: 0 | H229: 0 | I229: 0 | J229: 0 | K229: 0 | L229: 0 | M229: 0 | N229: 0 | O229: 0 | P229: 0 | Q229: 0 | R229: 0 | S229: 0 | T229: 0 | U229: 0 | V229: 0 | W229: 0 | X229: 0 | Y229: 0 | Z229: 0 | AA229: =+AA228+Z229 -> 0 | AB229: =+AB228+AA229 -> 0 | AC229: =+AC228+AB229 -> 0 | AD229: =+AD228+AC229 -> 0 | AE229: =+AE228+AD229 -> 0 | AF229: =+AF228+AE229 -> 0 | AG229: =+AG228+AF229 -> 0 | AH229: =+AH228+AG229 -> 0 | AI229: =+AI228+AH229 -> 0 | AJ229: =+AJ228+AI229 -> 0 | AK229: =+AK228+AJ229 -> 0 | AL229: =+AL228+AK229 -> 0 | AM229: =+AM228+AL229 -> 0 | AN229: =+AN228+AM229 -> 0 | AO229: =+AO228+AN229 -> 0 | AP229: =+AP228+AO229 -> 0 | AQ229: =+AQ228+AP229 -> 0 | AR229: =+AR228+AQ229 -> 0 | AS229: =+AS228+AR229 -> 0 | AT229: =+AT228+AS229 -> 0 | AU229: =+AU228+AT229 -> 0 | AV229: =+AV228+AU229 -> 0 | AW229: =+AW228+AV229 -> 0 | AX229: =+AX228+AW229 -> 0 | AY229: =+AY228+AX229 -> 0 | AZ229: =+AZ228+AY229 -> 0 | BA229: =+BA228+AZ229 -> 0 | BB229: =+BB228+BA229 -> 0 | BC229: =+BC228+BB229 -> 0 | BD229: =+BD228+BC229 -> 0 | BE229: =+BE228+BD229 -> 0 | BF229: =+BF228+BE229 -> 0 | BG229: =+BG228+BF229 -> 0 | BH229: =+BH228+BG229 -> 0 | BI229: =+BI228+BH229 -> 0 | BJ229: =+BJ228+BI229 -> 0 | BK229: =+BK228+BJ229 -> 0 | BL229: =+BL228+BK229 -> 0
B230: Total VAT | C230: [10^6 XXX] | D230: =+IF(D229<0,D228,IF(D229<D228,D228-D229,0)) -> 0 | E230: 0 | F230: 0 | G230: 0 | H230: 0 | I230: 0 | J230: 0 | K230: 0 | L230: 0 | M230: 0 | N230: 0 | O230: 0 | P230: 0 | Q230: 0 | R230: 0 | S230: 0 | T230: 0 | U230: 0 | V230: 0 | W230: 0 | X230: 0 | Y230: 0 | Z230: 0 | AA230: =+IF(AA229<0,AA228,IF(AA229<AA228,AA228-AA229,0)) -> 0 | AB230: 0 | AC230: 0 | AD230: 0 | AE230: 0 | AF230: 0 | AG230: 0 | AH230: 0 | AI230: 0 | AJ230: 0 | AK230: 0 | AL230: 0 | AM230: 0 | AN230: 0 | AO230: 0 | AP230: 0 | AQ230: 0 | AR230: 0 | AS230: 0 | AT230: 0 | AU230: 0 | AV230: 0 | AW230: 0 | AX230: 0 | AY230: 0 | AZ230: 0 | BA230: 0 | BB230: 0 | BC230: 0 | BD230: 0 | BE230: 0 | BF230: 0 | BG230: 0 | BH230: 0 | BI230: 0 | BJ230: 0 | BK230: 0 | BL230: 0
B232: PROFITS TAX 100% EQTY | C232: Project Year # | E232: -1 | F232: 0 | G232: 1 | H232: 2 | I232: 3 | J232: 4 | K232: 5 | L232: 6 | M232: 7 | N232: 8 | O232: 9 | P232: 10 | Q232: 11 | R232: 12 | S232: 13 | T232: 14 | U232: 15 | V232: 16 | W232: 17 | X232: 18 | Y232: 19 | Z232: 20 | AA232: 21 | AB232: 22 | AC232: 23 | AD232: 24 | AE232: 25 | AF232: 26 | AG232: 27 | AH232: 28 | AI232: 29 | AJ232: 30 | AK232: 31 | AL232: 32 | AM232: 33 | AN232: 34 | AO232: 35 | AP232: 36 | AQ232: 37 | AR232: 38 | AS232: 39 | AT232: 40 | AU232: 41 | AV232: 42 | AW232: 43 | AX232: 44 | AY232: 45 | AZ232: 46 | BA232: 47 | BB232: 48 | BC232: 49 | BD232: 50 | BE232: 51 | BF232: 52 | BG232: 53 | BH232: 54 | BI232: 55 | BJ232: 56 | BK232: 57 | BL232: 58
B233: Operative Cash Flow | C233: ="[10^6 "&$B$46&"]" -> [10^6 XXX] | G233: =G187-G194-G195-G196-G197 -> 20.53378361 | H233: 20.45636194 | I233: 20.37917254 | J233: 20.30221471 | K233: 20.22548776 | L233: 20.14899098 | M233: 20.0727237 | N233: 19.99668521 | O233: 19.92087484 | P233: 19.84529191 | Q233: 19.76993572 | R233: 19.6948056 | S233: 19.61990087 | T233: 19.54522086 | U233: 19.47076488 | V233: 19.39653227 | W233: 19.32252236 | X233: 19.24873448 | Y233: 19.17516797 | Z233: 19.10182215 | AA233: =AA187-AA194-AA195-AA196-AA197 -> 19.02869637 | AB233: 18.95578997 | AC233: 18.88310229 | AD233: 18.81063267 | AE233: 18.73838046 | AF233: 0 | AG233: 0 | AH233: 0 | AI233: 0 | AJ233: 0 | AK233: 0 | AL233: 0 | AM233: 0 | AN233: 0 | AO233: 0 | AP233: 0 | AQ233: 0 | AR233: 0 | AS233: 0 | AT233: 0 | AU233: 0 | AV233: 0 | AW233: 0 | AX233: 0 | AY233: 0 | AZ233: 0 | BA233: 0 | BB233: 0 | BC233: 0 | BD233: 0 | BE233: 0 | BF233: 0 | BG233: 0 | BH233: 0 | BI233: 0 | BJ233: 0 | BK233: 0 | BL233: 0
B234: Interests | C234: [10^6 XXX] | G234: 0 | H234: 0 | I234: 0 | J234: 0 | K234: 0 | L234: 0 | M234: 0 | N234: 0 | O234: 0 | P234: 0 | Q234: 0 | R234: 0 | S234: 0 | T234: 0 | U234: 0 | V234: 0 | W234: 0 | X234: 0 | Y234: 0 | Z234: 0 | AA234: 0 | AB234: 0 | AC234: 0 | AD234: 0 | AE234: 0 | AF234: 0 | AG234: 0 | AH234: 0 | AI234: 0 | AJ234: 0 | AK234: 0 | AL234: 0 | AM234: 0 | AN234: 0 | AO234: 0 | AP234: 0 | AQ234: 0 | AR234: 0 | AS234: 0 | AT234: 0 | AU234: 0 | AV234: 0 | AW234: 0 | AX234: 0 | AY234: 0 | AZ234: 0 | BA234: 0 | BB234: 0 | BC234: 0 | BD234: 0 | BE234: 0 | BF234: 0 | BG234: 0 | BH234: 0 | BI234: 0 | BJ234: 0 | BK234: 0 | BL234: 0
B235: Depreciation | C235: [10^6 XXX] | G235: =IF(G$232>$C$122,0,$C$102/$C$122) -> 0 | H235: 0 | I235: 0 | J235: 0 | K235: 0 | L235: 0 | M235: 0 | N235: 0 | O235: 0 | P235: 0 | Q235: 0 | R235: 0 | S235: 0 | T235: 0 | U235: 0 | V235: 0 | W235: 0 | X235: 0 | Y235: 0 | Z235: 0 | AA235: 0 | AB235: 0 | AC235: 0 | AD235: 0 | AE235: =IF(AE$232>$C$122,0,$C$102/$C$122) -> 0 | AF235: 0 | AG235: 0 | AH235: 0 | AI235: 0 | AJ235: 0 | AK235: 0 | AL235: 0 | AM235: 0 | AN235: 0 | AO235: 0 | AP235: 0 | AQ235: 0 | AR235: 0 | AS235: 0 | AT235: 0 | AU235: 0 | AV235: 0 | AW235: 0 | AX235: 0 | AY235: 0 | AZ235: 0 | BA235: 0 | BB235: 0 | BC235: 0 | BD235: 0 | BE235: 0 | BF235: 0 | BG235: 0 | BH235: 0 | BI235: 0 | BJ235: 0 | BK235: 0 | BL235: 0
B236: Net Cash Flow | C236: [10^6 XXX] | G236: =+G233-G234-G235 -> 20.53378361 | H236: 20.45636194 | I236: 20.37917254 | J236: 20.30221471 | K236: 20.22548776 | L236: 20.14899098 | M236: 20.0727237 | N236: 19.99668521 | O236: 19.92087484 | P236: 19.84529191 | Q236: 19.76993572 | R236: 19.6948056 | S236: 19.61990087 | T236: 19.54522086 | U236: 19.47076488 | V236: 19.39653227 | W236: 19.32252236 | X236: 19.24873448 | Y236: 19.17516797 | Z236: 19.10182215 | AA236: =+AA233-AA234-AA235 -> 19.02869637 | AB236: 18.95578997 | AC236: 18.88310229 | AD236: 18.81063267 | AE236: 18.73838046 | AF236: 0 | AG236: 0 | AH236: 0 | AI236: 0 | AJ236: 0 | AK236: 0 | AL236: 0 | AM236: 0 | AN236: 0 | AO236: 0 | AP236: 0 | AQ236: 0 | AR236: 0 | AS236: 0 | AT236: 0 | AU236: 0 | AV236: 0 | AW236: 0 | AX236: 0 | AY236: 0 | AZ236: 0 | BA236: 0 | BB236: 0 | BC236: 0 | BD236: 0 | BE236: 0 | BF236: 0 | BG236: 0 | BH236: 0 | BI236: 0 | BJ236: 0 | BK236: 0 | BL236: 0
B237: Net Acummulative | C237: [10^6 XXX] | G237: =+G236 -> 20.53378361 | H237: =+H236+G237 -> 40.99014555 | I237: 61.36931809 | J237: 81.67153281 | K237: 101.8970206 | L237: 122.0460115 | M237: 142.1187352 | N237: 162.1154205 | O237: 182.0362953 | P237: 201.8815872 | Q237: 221.6515229 | R237: 241.3463285 | S237: 260.9662294 | T237: 280.5114503 | U237: 299.9822151 | V237: 319.3787474 | W237: 338.7012698 | X237: 357.9500043 | Y237: 377.1251722 | Z237: 396.2269944 | AA237: =+AA236+Z237 -> 415.2556907 | AB237: =+AB236+AA237 -> 434.2114807 | AC237: =+AC236+AB237 -> 453.094583 | AD237: =+AD236+AC237 -> 471.9052157 | AE237: =+AE236+AD237 -> 490.6435961 | AF237: =+AF236+AE237 -> 490.6435961 | AG237: =+AG236+AF237 -> 490.6435961 | AH237: =+AH236+AG237 -> 490.6435961 | AI237: =+AI236+AH237 -> 490.6435961 | AJ237: =+AJ236+AI237 -> 490.6435961 | AK237: =+AK236+AJ237 -> 490.6435961 | AL237: =+AL236+AK237 -> 490.6435961 | AM237: =+AM236+AL237 -> 490.6435961 | AN237: =+AN236+AM237 -> 490.6435961 | AO237: =+AO236+AN237 -> 490.6435961 | AP237: =+AP236+AO237 -> 490.6435961 | AQ237: =+AQ236+AP237 -> 490.6435961 | AR237: =+AR236+AQ237 -> 490.6435961 | AS237: =+AS236+AR237 -> 490.6435961 | AT237: =+AT236+AS237 -> 490.6435961 | AU237: =+AU236+AT237 -> 490.6435961 | AV237: =+AV236+AU237 -> 490.6435961 | AW237: =+AW236+AV237 -> 490.6435961 | AX237: =+AX236+AW237 -> 490.6435961 | AY237: =+AY236+AX237 -> 490.6435961 | AZ237: =+AZ236+AY237 -> 490.6435961 | BA237: =+BA236+AZ237 -> 490.6435961 | BB237: =+BB236+BA237 -> 490.6435961 | BC237: =+BC236+BB237 -> 490.6435961 | BD237: =+BD236+BC237 -> 490.6435961 | BE237: =+BE236+BD237 -> 490.6435961 | BF237: =+BF236+BE237 -> 490.6435961 | BG237: =+BG236+BF237 -> 490.6435961 | BH237: =+BH236+BG237 -> 490.6435961 | BI237: =+BI236+BH237 -> 490.6435961 | BJ237: =+BJ236+BI237 -> 490.6435961 | BK237: =+BK236+BJ237 -> 490.6435961 | BL237: =+BL236+BK237 -> 490.6435961
B238: Total PROFITS TAX | C238: [10^6 XXX] | G238: =+IF(G237<0,0,IF(G237<G236,$C$121/100*G237,$C$121/100*G236)) -> 0 | H238: 0 | I238: 0 | J238: 0 | K238: 0 | L238: 0 | M238: 0 | N238: 0 | O238: 0 | P238: 0 | Q238: 0 | R238: 0 | S238: 0 | T238: 0 | U238: 0 | V238: 0 | W238: 0 | X238: 0 | Y238: 0 | Z238: 0 | AA238: =+IF(AA237<0,0,IF(AA237<AA236,$C$121/100*AA237,$C$121/100*AA236)) -> 0 | AB238: 0 | AC238: 0 | AD238: 0 | AE238: 0 | AF238: 0 | AG238: 0 | AH238: 0 | AI238: 0 | AJ238: 0 | AK238: 0 | AL238: 0 | AM238: 0 | AN238: 0 | AO238: 0 | AP238: 0 | AQ238: 0 | AR238: 0 | AS238: 0 | AT238: 0 | AU238: 0 | AV238: 0 | AW238: 0 | AX238: 0 | AY238: 0 | AZ238: 0 | BA238: 0 | BB238: 0 | BC238: 0 | BD238: 0 | BE238: 0 | BF238: 0 | BG238: 0 | BH238: 0 | BI238: 0 | BJ238: 0 | BK238: 0 | BL238: 0
B240: PROFITS TAX WITH LOAN | C240: Project Year # | E240: -1 | F240: 0 | G240: 1 | H240: 2 | I240: 3 | J240: 4 | K240: 5 | L240: 6 | M240: 7 | N240: 8 | O240: 9 | P240: 10 | Q240: 11 | R240: 12 | S240: 13 | T240: 14 | U240: 15 | V240: 16 | W240: 17 | X240: 18 | Y240: 19 | Z240: 20 | AA240: 21 | AB240: 22 | AC240: 23 | AD240: 24 | AE240: 25 | AF240: 26 | AG240: 27 | AH240: 28 | AI240: 29 | AJ240: 30 | AK240: 31 | AL240: 32 | AM240: 33 | AN240: 34 | AO240: 35 | AP240: 36 | AQ240: 37 | AR240: 38 | AS240: 39 | AT240: 40 | AU240: 41 | AV240: 42 | AW240: 43 | AX240: 44 | AY240: 45 | AZ240: 46 | BA240: 47 | BB240: 48 | BC240: 49 | BD240: 50 | BE240: 51 | BF240: 52 | BG240: 53 | BH240: 54 | BI240: 55 | BJ240: 56 | BK240: 57 | BL240: 58
B241: Operative Cash Flow | C241: ="[10^6 "&$B$46&"]" -> [10^6 XXX] | G241: =G187-G194-G195-G196-G197 -> 20.53378361 | H241: 20.45636194 | I241: 20.37917254 | J241: 20.30221471 | K241: 20.22548776 | L241: 20.14899098 | M241: 20.0727237 | N241: 19.99668521 | O241: 19.92087484 | P241: 19.84529191 | Q241: 19.76993572 | R241: 19.6948056 | S241: 19.61990087 | T241: 19.54522086 | U241: 19.47076488 | V241: 19.39653227 | W241: 19.32252236 | X241: 19.24873448 | Y241: 19.17516797 | Z241: 19.10182215 | AA241: =AA187-AA194-AA195-AA196-AA197 -> 19.02869637 | AB241: 18.95578997 | AC241: 18.88310229 | AD241: 18.81063267 | AE241: 18.73838046 | AF241: 0 | AG241: 0 | AH241: 0 | AI241: 0 | AJ241: 0 | AK241: 0 | AL241: 0 | AM241: 0 | AN241: 0 | AO241: 0 | AP241: 0 | AQ241: 0 | AR241: 0 | AS241: 0 | AT241: 0 | AU241: 0 | AV241: 0 | AW241: 0 | AX241: 0 | AY241: 0 | AZ241: 0 | BA241: 0 | BB241: 0 | BC241: 0 | BD241: 0 | BE241: 0 | BF241: 0 | BG241: 0 | BH241: 0 | BI241: 0 | BJ241: 0 | BK241: 0 | BL241: 0
B242: Interests | C242: [10^6 XXX] | G242: =G192 -> 0 | H242: 0 | I242: 0 | J242: 0 | K242: 0 | L242: 0 | M242: 0 | N242: 0 | O242: 0 | P242: 0 | Q242: 0 | R242: 0 | S242: 0 | T242: 0 | U242: 0 | V242: 0 | W242: 0 | X242: 0 | Y242: 0 | Z242: 0 | AA242: =AA192 -> 0 | AB242: 0 | AC242: 0 | AD242: 0 | AE242: 0 | AF242: 0 | AG242: 0 | AH242: 0 | AI242: 0 | AJ242: 0 | AK242: 0 | AL242: 0 | AM242: 0 | AN242: 0 | AO242: 0 | AP242: 0 | AQ242: 0 | AR242: 0 | AS242: 0 | AT242: 0 | AU242: 0 | AV242: 0 | AW242: 0 | AX242: 0 | AY242: 0 | AZ242: 0 | BA242: 0 | BB242: 0 | BC242: 0 | BD242: 0 | BE242: 0 | BF242: 0 | BG242: 0 | BH242: 0 | BI242: 0 | BJ242: 0 | BK242: 0 | BL242: 0
B243: Depreciation | C243: [10^6 XXX] | G243: =IF(G$240>$C$122,0,$C$102/$C$122) -> 0 | H243: 0 | I243: 0 | J243: 0 | K243: 0 | L243: 0 | M243: 0 | N243: 0 | O243: 0 | P243: 0 | Q243: 0 | R243: 0 | S243: 0 | T243: 0 | U243: 0 | V243: 0 | W243: 0 | X243: 0 | Y243: 0 | Z243: 0 | AA243: 0 | AB243: 0 | AC243: 0 | AD243: 0 | AE243: 0 | AF243: 0 | AG243: 0 | AH243: 0 | AI243: 0 | AJ243: 0 | AK243: 0 | AL243: 0 | AM243: 0 | AN243: 0 | AO243: 0 | AP243: 0 | AQ243: 0 | AR243: 0 | AS243: 0 | AT243: 0 | AU243: 0 | AV243: 0 | AW243: 0 | AX243: 0 | AY243: 0 | AZ243: 0 | BA243: 0 | BB243: 0 | BC243: 0 | BD243: 0 | BE243: 0 | BF243: 0 | BG243: 0 | BH243: 0 | BI243: 0 | BJ243: 0 | BK243: 0 | BL243: 0
B244: Net Cash Flow | C244: [10^6 XXX] | G244: =+G241-G242-G243 -> 20.53378361 | H244: 20.45636194 | I244: 20.37917254 | J244: 20.30221471 | K244: 20.22548776 | L244: 20.14899098 | M244: 20.0727237 | N244: 19.99668521 | O244: 19.92087484 | P244: 19.84529191 | Q244: 19.76993572 | R244: 19.6948056 | S244: 19.61990087 | T244: 19.54522086 | U244: 19.47076488 | V244: 19.39653227 | W244: 19.32252236 | X244: 19.24873448 | Y244: 19.17516797 | Z244: 19.10182215 | AA244: =+AA241-AA242-AA243 -> 19.02869637 | AB244: 18.95578997 | AC244: 18.88310229 | AD244: 18.81063267 | AE244: 18.73838046 | AF244: 0 | AG244: 0 | AH244: 0 | AI244: 0 | AJ244: 0 | AK244: 0 | AL244: 0 | AM244: 0 | AN244: 0 | AO244: 0 | AP244: 0 | AQ244: 0 | AR244: 0 | AS244: 0 | AT244: 0 | AU244: 0 | AV244: 0 | AW244: 0 | AX244: 0 | AY244: 0 | AZ244: 0 | BA244: 0 | BB244: 0 | BC244: 0 | BD244: 0 | BE244: 0 | BF244: 0 | BG244: 0 | BH244: 0 | BI244: 0 | BJ244: 0 | BK244: 0 | BL244: 0
B245: Net Acummulative | C245: [10^6 XXX] | G245: =+G244 -> 20.53378361 | H245: =+H244+G245 -> 40.99014555 | I245: 61.36931809 | J245: 81.67153281 | K245: 101.8970206 | L245: 122.0460115 | M245: 142.1187352 | N245: 162.1154205 | O245: 182.0362953 | P245: 201.8815872 | Q245: 221.6515229 | R245: 241.3463285 | S245: 260.9662294 | T245: 280.5114503 | U245: 299.9822151 | V245: 319.3787474 | W245: 338.7012698 | X245: 357.9500043 | Y245: 377.1251722 | Z245: 396.2269944 | AA245: =+AA244+Z245 -> 415.2556907 | AB245: =+AB244+AA245 -> 434.2114807 | AC245: =+AC244+AB245 -> 453.094583 | AD245: =+AD244+AC245 -> 471.9052157 | AE245: =+AE244+AD245 -> 490.6435961 | AF245: =+AF244+AE245 -> 490.6435961 | AG245: =+AG244+AF245 -> 490.6435961 | AH245: =+AH244+AG245 -> 490.6435961 | AI245: =+AI244+AH245 -> 490.6435961 | AJ245: =+AJ244+AI245 -> 490.6435961 | AK245: =+AK244+AJ245 -> 490.6435961 | AL245: =+AL244+AK245 -> 490.6435961 | AM245: =+AM244+AL245 -> 490.6435961 | AN245: =+AN244+AM245 -> 490.6435961 | AO245: =+AO244+AN245 -> 490.6435961 | AP245: =+AP244+AO245 -> 490.6435961 | AQ245: =+AQ244+AP245 -> 490.6435961 | AR245: =+AR244+AQ245 -> 490.6435961 | AS245: =+AS244+AR245 -> 490.6435961 | AT245: =+AT244+AS245 -> 490.6435961 | AU245: =+AU244+AT245 -> 490.6435961 | AV245: =+AV244+AU245 -> 490.6435961 | AW245: =+AW244+AV245 -> 490.6435961 | AX245: =+AX244+AW245 -> 490.6435961 | AY245: =+AY244+AX245 -> 490.6435961 | AZ245: =+AZ244+AY245 -> 490.6435961 | BA245: =+BA244+AZ245 -> 490.6435961 | BB245: =+BB244+BA245 -> 490.6435961 | BC245: =+BC244+BB245 -> 490.6435961 | BD245: =+BD244+BC245 -> 490.6435961 | BE245: =+BE244+BD245 -> 490.6435961 | BF245: =+BF244+BE245 -> 490.6435961 | BG245: =+BG244+BF245 -> 490.6435961 | BH245: =+BH244+BG245 -> 490.6435961 | BI245: =+BI244+BH245 -> 490.6435961 | BJ245: =+BJ244+BI245 -> 490.6435961 | BK245: =+BK244+BJ245 -> 490.6435961 | BL245: =+BL244+BK245 -> 490.6435961
B246: Total PROFITS TAX | C246: [10^6 XXX] | G246: =+IF(G245<0,0,IF(G245<G244,$C$121/100*G245,$C$121/100*G244)) -> 0 | H246: 0 | I246: 0 | J246: 0 | K246: 0 | L246: 0 | M246: 0 | N246: 0 | O246: 0 | P246: 0 | Q246: 0 | R246: 0 | S246: 0 | T246: 0 | U246: 0 | V246: 0 | W246: 0 | X246: 0 | Y246: 0 | Z246: 0 | AA246: =+IF(AA245<0,0,IF(AA245<AA244,$C$121/100*AA245,$C$121/100*AA244)) -> 0 | AB246: 0 | AC246: 0 | AD246: 0 | AE246: 0 | AF246: 0 | AG246: 0 | AH246: 0 | AI246: 0 | AJ246: 0 | AK246: 0 | AL246: 0 | AM246: 0 | AN246: 0 | AO246: 0 | AP246: 0 | AQ246: 0 | AR246: 0 | AS246: 0 | AT246: 0 | AU246: 0 | AV246: 0 | AW246: 0 | AX246: 0 | AY246: 0 | AZ246: 0 | BA246: 0 | BB246: 0 | BC246: 0 | BD246: 0 | BE246: 0 | BF246: 0 | BG246: 0 | BH246: 0 | BI246: 0 | BJ246: 0 | BK246: 0 | BL246: 0
B248: LOANS | C248: Project Year # | E248: -1 | F248: 0 | G248: 1 | H248: 2 | I248: 3 | J248: 4 | K248: 5 | L248: 6 | M248: 7 | N248: 8 | O248: 9 | P248: 10 | Q248: 11 | R248: 12 | S248: 13 | T248: 14 | U248: 15 | V248: 16 | W248: 17 | X248: 18 | Y248: 19 | Z248: 20 | AA248: 21 | AB248: 22 | AC248: 23 | AD248: 24 | AE248: 25 | AF248: 26 | AG248: 27 | AH248: 28 | AI248: 29 | AJ248: 30 | AK248: 31 | AL248: 32 | AM248: 33 | AN248: 34 | AO248: 35 | AP248: 36 | AQ248: 37 | AR248: 38 | AS248: 39 | AT248: 40 | AU248: 41 | AV248: 42 | AW248: 43 | AX248: 44 | AY248: 45 | AZ248: 46 | BA248: 47 | BB248: 48 | BC248: 49 | BD248: 50 | BE248: 51 | BF248: 52 | BG248: 53 | BH248: 54 | BI248: 55 | BJ248: 56 | BK248: 57 | BL248: 58
B249: Capital | C249: ="[10^6 "&$B$46&"]" -> [10^6 XXX] | G249: =+IF(G$248<=$C$110,G$250/($C$110-G$248+1),0) -> 0 | H249: 0 | I249: 0 | J249: 0 | K249: 0 | L249: 0 | M249: 0 | N249: 0 | O249: 0 | P249: 0 | Q249: 0 | R249: 0 | S249: 0 | T249: 0 | U249: 0 | V249: 0 | W249: 0 | X249: 0 | Y249: 0 | Z249: 0 | AA249: 0 | AB249: 0 | AC249: 0 | AD249: 0 | AE249: 0 | AF249: 0 | AG249: 0 | AH249: 0 | AI249: 0 | AJ249: 0 | AK249: 0 | AL249: 0 | AM249: 0 | AN249: 0 | AO249: 0 | AP249: 0 | AQ249: 0 | AR249: 0 | AS249: 0 | AT249: 0 | AU249: 0 | AV249: 0 | AW249: 0 | AX249: 0 | AY249: 0 | AZ249: 0 | BA249: 0 | BB249: 0 | BC249: 0 | BD249: 0 | BE249: 0 | BF249: 0 | BG249: 0 | BH249: 0 | BI249: 0 | BJ249: 0 | BK249: 0 | BL249: 0
B250: Debt | C250: [10^6 XXX] | G250: =+$C$102*$C$108/100*(1+$C$120/100) -> 88.0859375 | H250: =(G250-G249) -> 88.0859375 | I250: 88.0859375 | J250: 88.0859375 | K250: 88.0859375 | L250: 88.0859375 | M250: 88.0859375 | N250: 88.0859375 | O250: 88.0859375 | P250: 88.0859375 | Q250: 88.0859375 | R250: 88.0859375 | S250: 88.0859375 | T250: 88.0859375 | U250: 88.0859375 | V250: 88.0859375 | W250: 88.0859375 | X250: 88.0859375 | Y250: 88.0859375 | Z250: 88.0859375 | AA250: =(Z250-Z249) -> 88.0859375 | AB250: =(AA250-AA249) -> 88.0859375 | AC250: =(AB250-AB249) -> 88.0859375 | AD250: =(AC250-AC249) -> 88.0859375 | AE250: =(AD250-AD249) -> 88.0859375 | AF250: =(AE250-AE249) -> 88.0859375 | AG250: =(AF250-AF249) -> 88.0859375 | AH250: =(AG250-AG249) -> 88.0859375 | AI250: =(AH250-AH249) -> 88.0859375 | AJ250: =(AI250-AI249) -> 88.0859375 | AK250: =(AJ250-AJ249) -> 88.0859375 | AL250: =(AK250-AK249) -> 88.0859375 | AM250: =(AL250-AL249) -> 88.0859375 | AN250: =(AM250-AM249) -> 88.0859375 | AO250: =(AN250-AN249) -> 88.0859375 | AP250: =(AO250-AO249) -> 88.0859375 | AQ250: =(AP250-AP249) -> 88.0859375 | AR250: =(AQ250-AQ249) -> 88.0859375 | AS250: =(AR250-AR249) -> 88.0859375 | AT250: =(AS250-AS249) -> 88.0859375 | AU250: =(AT250-AT249) -> 88.0859375 | AV250: =(AU250-AU249) -> 88.0859375 | AW250: =(AV250-AV249) -> 88.0859375 | AX250: =(AW250-AW249) -> 88.0859375 | AY250: =(AX250-AX249) -> 88.0859375 | AZ250: =(AY250-AY249) -> 88.0859375 | BA250: =(AZ250-AZ249) -> 88.0859375 | BB250: =(BA250-BA249) -> 88.0859375 | BC250: =(BB250-BB249) -> 88.0859375 | BD250: =(BC250-BC249) -> 88.0859375 | BE250: =(BD250-BD249) -> 88.0859375 | BF250: =(BE250-BE249) -> 88.0859375 | BG250: =(BF250-BF249) -> 88.0859375 | BH250: =(BG250-BG249) -> 88.0859375 | BI250: =(BH250-BH249) -> 88.0859375 | BJ250: =(BI250-BI249) -> 88.0859375 | BK250: =(BJ250-BJ249) -> 88.0859375 | BL250: =(BK250-BK249) -> 88.0859375
B251: Interest | C251: [10^6 XXX] | E251: =(-D212+D205)*((1+$C$109/100)^1-1) -> 0 | F251: =(-D212+D205)*((1+$C$109/100)^1-1)+(-E212+E205)*((1+$C$109/100)^1-1) -> 0 | G251: =+G250*$C$109/100 -> 0 | H251: 0 | I251: 0 | J251: 0 | K251: 0 | L251: 0 | M251: 0 | N251: 0 | O251: 0 | P251: 0 | Q251: 0 | R251: 0 | S251: 0 | T251: 0 | U251: 0 | V251: 0 | W251: 0 | X251: 0 | Y251: 0 | Z251: 0 | AA251: =+AA250*$C$109/100 -> 0 | AB251: 0 | AC251: 0 | AD251: 0 | AE251: 0 | AF251: 0 | AG251: 0 | AH251: 0 | AI251: 0 | AJ251: 0 | AK251: 0 | AL251: 0 | AM251: 0 | AN251: 0 | AO251: 0 | AP251: 0 | AQ251: 0 | AR251: 0 | AS251: 0 | AT251: 0 | AU251: 0 | AV251: 0 | AW251: 0 | AX251: 0 | AY251: 0 | AZ251: 0 | BA251: 0 | BB251: 0 | BC251: 0 | BD251: 0 | BE251: 0 | BF251: 0 | BG251: 0 | BH251: 0 | BI251: 0 | BJ251: 0 | BK251: 0 | BL251: 0
B252: Short-term loan (Interc) - Capital | C252: [10^6 XXX] | E252: =-E251 -> 0 | F252: =-F251-F253 -> 0
B253: Short-term loan (Interc) - Dbt+Int | C253: [10^6 XXX] | F253: =-E$252*(1+$C$111/100) -> 0 | G253: =-F$252*(1+$C$111/100) -> 0
B254: Total LOANS (+ intercalar) | C254: [10^6 XXX] | E254: =+E251+E252+E253 -> 0 | F254: =+F251+F252+F253 -> 0 | G254: =+G249+G251+G253 -> 0 | H254: =+H249+H251 -> 0 | I254: 0 | J254: 0 | K254: 0 | L254: 0 | M254: 0 | N254: 0 | O254: 0 | P254: 0 | Q254: 0 | R254: 0 | S254: 0 | T254: 0 | U254: 0 | V254: 0 | W254: 0 | X254: 0 | Y254: 0 | Z254: 0 | AA254: =+AA249+AA251 -> 0 | AB254: 0 | AC254: 0 | AD254: 0 | AE254: 0 | AF254: 0 | AG254: 0 | AH254: 0 | AI254: 0 | AJ254: 0 | AK254: 0 | AL254: 0 | AM254: 0 | AN254: 0 | AO254: 0 | AP254: 0 | AQ254: 0 | AR254: 0 | AS254: 0 | AT254: 0 | AU254: 0 | AV254: 0 | AW254: 0 | AX254: 0 | AY254: 0 | AZ254: 0 | BA254: 0 | BB254: 0 | BC254: 0 | BD254: 0 | BE254: 0 | BF254: 0 | BG254: 0 | BH254: 0 | BI254: 0 | BJ254: 0 | BK254: 0 | BL254: 0
B256: NET PRESENT VALUE | E256: NPV | G256: 1 | H256: =+G256+1 -> 2 | I256: 3 | J256: 4 | K256: 5 | L256: 6 | M256: 7 | N256: 8 | O256: 9 | P256: 10 | Q256: 11 | R256: 12 | S256: 13 | T256: 14 | U256: 15 | V256: 16 | W256: 17 | X256: 18 | Y256: 19 | Z256: 20 | AA256: =+Z256+1 -> 21 | AB256: =+AA256+1 -> 22 | AC256: =+AB256+1 -> 23 | AD256: =+AC256+1 -> 24 | AE256: =+AD256+1 -> 25 | AF256: =+AE256+1 -> 26 | AG256: =+AF256+1 -> 27 | AH256: =+AG256+1 -> 28 | AI256: =+AH256+1 -> 29 | AJ256: =+AI256+1 -> 30 | AK256: =+AJ256+1 -> 31 | AL256: =+AK256+1 -> 32 | AM256: =+AL256+1 -> 33 | AN256: =+AM256+1 -> 34 | AO256: =+AN256+1 -> 35 | AP256: =+AO256+1 -> 36 | AQ256: =+AP256+1 -> 37 | AR256: =+AQ256+1 -> 38 | AS256: =+AR256+1 -> 39 | AT256: =+AS256+1 -> 40 | AU256: =+AT256+1 -> 41 | AV256: =+AU256+1 -> 42 | AW256: =+AV256+1 -> 43 | AX256: =+AW256+1 -> 44 | AY256: =+AX256+1 -> 45 | AZ256: =+AY256+1 -> 46 | BA256: =+AZ256+1 -> 47 | BB256: =+BA256+1 -> 48 | BC256: =+BB256+1 -> 49 | BD256: =+BC256+1 -> 50 | BE256: =+BD256+1 -> 51 | BF256: =+BE256+1 -> 52 | BG256: =+BF256+1 -> 53 | BH256: =+BG256+1 -> 54 | BI256: =+BH256+1 -> 55 | BJ256: =+BI256+1 -> 56 | BK256: =+BJ256+1 -> 57 | BL256: =+BK256+1 -> 58
B257: Energy Production (net) | C257: [GWh] | E257: =-NPV($C$221,G257:Z257)/PV($C$221,20,1) ->  | G257: =+G179 -> 143.2054687 | H257: 142.7758523 | I257: 142.3475248 | J257: 141.9204822 | K257: 141.4947208 | L257: 141.0702366 | M257: 140.6470259 | N257: 140.2250848 | O257: 139.8044096 | P257: 139.3849963 | Q257: 138.9668413 | R257: 138.5499408 | S257: 138.134291 | T257: 137.7198881 | U257: 137.3067285 | V257: 136.8948083 | W257: 136.4841238 | X257: 136.0746715 | Y257: 135.6664475 | Z257: 135.2594481 | AA257: =+AA179 -> 134.8536698 | AB257: 134.4491088 | AC257: 134.0457614 | AD257: 133.6436242 | AE257: 133.2426933 | AF257: 0 | AG257: 0 | AH257: 0 | AI257: 0 | AJ257: 0 | AK257: 0 | AL257: 0 | AM257: 0 | AN257: 0 | AO257: 0 | AP257: 0 | AQ257: 0 | AR257: 0 | AS257: 0 | AT257: 0 | AU257: 0 | AV257: 0 | AW257: 0 | AX257: 0 | AY257: 0 | AZ257: 0 | BA257: 0 | BB257: 0 | BC257: 0 | BD257: 0 | BE257: 0 | BF257: 0 | BG257: 0 | BH257: 0 | BI257: 0 | BJ257: 0 | BK257: 0 | BL257: 0
E258: [USD/MWh]
B259: Energy Incomes | C259: ="[10^6 "&$B$46&"]" -> [10^6 XXX] | E259: =-NPV($C$221,G259:Z259)/PV($C$221,20,1) ->  | G259: =+G185 -> 32.24248478 | H259: 32.14575732 | I259: 32.04932005 | J259: 31.95317209 | K259: 31.85731258 | L259: 31.76174064 | M259: 31.66645542 | N259: 31.57145605 | O259: 31.47674168 | P259: 31.38231146 | Q259: 31.28816452 | R259: 31.19430003 | S259: 31.10071713 | T259: 31.00741498 | U259: 30.91439273 | V259: 30.82164955 | W259: 30.7291846 | X259: 30.63699705 | Y259: 30.54508606 | Z259: 30.4534508 | AA259: =+AA185 -> 30.36209045 | AB259: 30.27100418 | AC259: 30.18019117 | AD259: 30.08965059 | AE259: 29.99938164 | AF259: 0 | AG259: 0 | AH259: 0 | AI259: 0 | AJ259: 0 | AK259: 0 | AL259: 0 | AM259: 0 | AN259: 0 | AO259: 0 | AP259: 0 | AQ259: 0 | AR259: 0 | AS259: 0 | AT259: 0 | AU259: 0 | AV259: 0 | AW259: 0 | AX259: 0 | AY259: 0 | AZ259: 0 | BA259: 0 | BB259: 0 | BC259: 0 | BD259: 0 | BE259: 0 | BF259: 0 | BG259: 0 | BH259: 0 | BI259: 0 | BJ259: 0 | BK259: 0 | BL259: 0
B260: Capacity Incomes | C260: [10^6 XXX] | G260: =+G186 -> 0 | H260: 0 | I260: 0 | J260: 0 | K260: 0 | L260: 0 | M260: 0 | N260: 0 | O260: 0 | P260: 0 | Q260: 0 | R260: 0 | S260: 0 | T260: 0 | U260: 0 | V260: 0 | W260: 0 | X260: 0 | Y260: 0 | Z260: 0 | AA260: =+AA186 -> 0 | AB260: 0 | AC260: 0 | AD260: 0 | AE260: 0 | AF260: 0 | AG260: 0 | AH260: 0 | AI260: 0 | AJ260: 0 | AK260: 0 | AL260: 0 | AM260: 0 | AN260: 0 | AO260: 0 | AP260: 0 | AQ260: 0 | AR260: 0 | AS260: 0 | AT260: 0 | AU260: 0 | AV260: 0 | AW260: 0 | AX260: 0 | AY260: 0 | AZ260: 0 | BA260: 0 | BB260: 0 | BC260: 0 | BD260: 0 | BE260: 0 | BF260: 0 | BG260: 0 | BH260: 0 | BI260: 0 | BJ260: 0 | BK260: 0 | BL260: 0
B261: Total Incomes | C261: [10^6 XXX] | G261: =+SUM(G259:G260) -> 32.24248478 | H261: 32.14575732 | I261: 32.04932005 | J261: 31.95317209 | K261: 31.85731258 | L261: 31.76174064 | M261: 31.66645542 | N261: 31.57145605 | O261: 31.47674168 | P261: 31.38231146 | Q261: 31.28816452 | R261: 31.19430003 | S261: 31.10071713 | T261: 31.00741498 | U261: 30.91439273 | V261: 30.82164955 | W261: 30.7291846 | X261: 30.63699705 | Y261: 30.54508606 | Z261: 30.4534508 | AA261: =+SUM(AA259:AA260) -> 30.36209045 | AB261: 30.27100418 | AC261: 30.18019117 | AD261: 30.08965059 | AE261: 29.99938164 | AF261: 0 | AG261: 0 | AH261: 0 | AI261: 0 | AJ261: 0 | AK261: 0 | AL261: 0 | AM261: 0 | AN261: 0 | AO261: 0 | AP261: 0 | AQ261: 0 | AR261: 0 | AS261: 0 | AT261: 0 | AU261: 0 | AV261: 0 | AW261: 0 | AX261: 0 | AY261: 0 | AZ261: 0 | BA261: 0 | BB261: 0 | BC261: 0 | BD261: 0 | BE261: 0 | BF261: 0 | BG261: 0 | BH261: 0 | BI261: 0 | BJ261: 0 | BK261: 0 | BL261: 0
B262: Fuel Cost | C262: [10^6 XXX] | G262: =G194+G195 -> 6.435263672 | H262: 6.415957881 | I262: 6.396710007 | J262: 6.377519877 | K262: 6.358387318 | L262: 6.339312156 | M262: 6.320294219 | N262: 6.301333336 | O262: 6.282429336 | P262: 6.263582048 | Q262: 6.244791302 | R262: 6.226056928 | S262: 6.207378758 | T262: 6.188756621 | U262: 6.170190351 | V262: 6.15167978 | W262: 6.133224741 | X262: 6.114825067 | Y262: 6.096480592 | Z262: 6.07819115 | AA262: =AA194+AA195 -> 6.059956576 | AB262: 6.041776707 | AC262: 6.023651377 | AD262: 6.005580422 | AE262: 5.987563681 | AF262: 0 | AG262: 0 | AH262: 0 | AI262: 0 | AJ262: 0 | AK262: 0 | AL262: 0 | AM262: 0 | AN262: 0 | AO262: 0 | AP262: 0 | AQ262: 0 | AR262: 0 | AS262: 0 | AT262: 0 | AU262: 0 | AV262: 0 | AW262: 0 | AX262: 0 | AY262: 0 | AZ262: 0 | BA262: 0 | BB262: 0 | BC262: 0 | BD262: 0 | BE262: 0 | BF262: 0 | BG262: 0 | BH262: 0 | BI262: 0 | BJ262: 0 | BK262: 0 | BL262: 0
B263: Other Costs (total) | C263: [10^6 XXX] | G263: =+G196+G197 -> 5.2734375 | H263: 5.2734375 | I263: 5.2734375 | J263: 5.2734375 | K263: 5.2734375 | L263: 5.2734375 | M263: 5.2734375 | N263: 5.2734375 | O263: 5.2734375 | P263: 5.2734375 | Q263: 5.2734375 | R263: 5.2734375 | S263: 5.2734375 | T263: 5.2734375 | U263: 5.2734375 | V263: 5.2734375 | W263: 5.2734375 | X263: 5.2734375 | Y263: 5.2734375 | Z263: 5.2734375 | AA263: =+AA196+AA197 -> 5.2734375 | AB263: 5.2734375 | AC263: 5.2734375 | AD263: 5.2734375 | AE263: 5.2734375 | AF263: 0 | AG263: 0 | AH263: 0 | AI263: 0 | AJ263: 0 | AK263: 0 | AL263: 0 | AM263: 0 | AN263: 0 | AO263: 0 | AP263: 0 | AQ263: 0 | AR263: 0 | AS263: 0 | AT263: 0 | AU263: 0 | AV263: 0 | AW263: 0 | AX263: 0 | AY263: 0 | AZ263: 0 | BA263: 0 | BB263: 0 | BC263: 0 | BD263: 0 | BE263: 0 | BF263: 0 | BG263: 0 | BH263: 0 | BI263: 0 | BJ263: 0 | BK263: 0 | BL263: 0
B264: Investment (Equity + Loan) | C264: [10^6 XXX] | G264: =(NPV($C$221,F192:Z192)+F191+E191*(1+$C$221))*(1+$C$221) ->  | H264: 0 | I264: 0 | J264: 0 | K264: 0 | L264: 0 | M264: 0 | N264: 0 | O264: 0 | P264: 0 | Q264: 0 | R264: 0 | S264: 0 | T264: 0 | U264: 0 | V264: 0 | W264: 0 | X264: 0 | Y264: 0 | Z264: 0 | AA264: 0 | AB264: 0 | AC264: 0 | AD264: 0 | AE264: 0 | AF264: 0 | AG264: 0 | AH264: 0 | AI264: 0 | AJ264: 0 | AK264: 0 | AL264: 0 | AM264: 0 | AN264: 0 | AO264: 0 | AP264: 0 | AQ264: 0 | AR264: 0 | AS264: 0 | AT264: 0 | AU264: 0 | AV264: 0 | AW264: 0 | AX264: 0 | AY264: 0 | AZ264: 0 | BA264: 0 | BB264: 0 | BC264: 0 | BD264: 0 | BE264: 0 | BF264: 0 | BG264: 0 | BH264: 0 | BI264: 0 | BJ264: 0 | BK264: 0 | BL264: 0
B265: Total Expendit.(before taxes) | C265: [10^6 XXX] | G265: =+G264+G262+G263 ->  | H265: 11.68939538 | I265: 11.67014751 | J265: 11.65095738 | K265: 11.63182482 | L265: 11.61274966 | M265: 11.59373172 | N265: 11.57477084 | O265: 11.55586684 | P265: 11.53701955 | Q265: 11.5182288 | R265: 11.49949443 | S265: 11.48081626 | T265: 11.46219412 | U265: 11.44362785 | V265: 11.42511728 | W265: 11.40666224 | X265: 11.38826257 | Y265: 11.36991809 | Z265: 11.35162865 | AA265: =+AA264+AA262+AA263 -> 11.33339408 | AB265: 11.31521421 | AC265: 11.29708888 | AD265: 11.27901792 | AE265: 11.26100118 | AF265: 0 | AG265: 0 | AH265: 0 | AI265: 0 | AJ265: 0 | AK265: 0 | AL265: 0 | AM265: 0 | AN265: 0 | AO265: 0 | AP265: 0 | AQ265: 0 | AR265: 0 | AS265: 0 | AT265: 0 | AU265: 0 | AV265: 0 | AW265: 0 | AX265: 0 | AY265: 0 | AZ265: 0 | BA265: 0 | BB265: 0 | BC265: 0 | BD265: 0 | BE265: 0 | BF265: 0 | BG265: 0 | BH265: 0 | BI265: 0 | BJ265: 0 | BK265: 0 | BL265: 0
B266: Taxes | C266: [10^6 XXX] | G266: =-(G204+F204*(1+$C$221)+E204*(1+$C$221)^2) ->  | H266: =-H204 -> 0 | I266: 0 | J266: 0 | K266: 0 | L266: 0 | M266: 0 | N266: 0 | O266: 0 | P266: 0 | Q266: 0 | R266: 0 | S266: 0 | T266: 0 | U266: 0 | V266: 0 | W266: 0 | X266: 0 | Y266: 0 | Z266: 0 | AA266: =-AA204 -> 0 | AB266: 0 | AC266: 0 | AD266: 0 | AE266: 0 | AF266: 0 | AG266: 0 | AH266: 0 | AI266: 0 | AJ266: 0 | AK266: 0 | AL266: 0 | AM266: 0 | AN266: 0 | AO266: 0 | AP266: 0 | AQ266: 0 | AR266: 0 | AS266: 0 | AT266: 0 | AU266: 0 | AV266: 0 | AW266: 0 | AX266: 0 | AY266: 0 | AZ266: 0 | BA266: 0 | BB266: 0 | BC266: 0 | BD266: 0 | BE266: 0 | BF266: 0 | BG266: 0 | BH266: 0 | BI266: 0 | BJ266: 0 | BK266: 0 | BL266: 0
B267: Total Expendit.(after taxes) | C267: [10^6 XXX] | G267: =G265+G266 ->  | H267: 11.68939538 | I267: 11.67014751 | J267: 11.65095738 | K267: 11.63182482 | L267: 11.61274966 | M267: 11.59373172 | N267: 11.57477084 | O267: 11.55586684 | P267: 11.53701955 | Q267: 11.5182288 | R267: 11.49949443 | S267: 11.48081626 | T267: 11.46219412 | U267: 11.44362785 | V267: 11.42511728 | W267: 11.40666224 | X267: 11.38826257 | Y267: 11.36991809 | Z267: 11.35162865 | AA267: =AA265+AA266 -> 11.33339408 | AB267: 11.31521421 | AC267: 11.29708888 | AD267: 11.27901792 | AE267: 11.26100118 | AF267: 0 | AG267: 0 | AH267: 0 | AI267: 0 | AJ267: 0 | AK267: 0 | AL267: 0 | AM267: 0 | AN267: 0 | AO267: 0 | AP267: 0 | AQ267: 0 | AR267: 0 | AS267: 0 | AT267: 0 | AU267: 0 | AV267: 0 | AW267: 0 | AX267: 0 | AY267: 0 | AZ267: 0 | BA267: 0 | BB267: 0 | BC267: 0 | BD267: 0 | BE267: 0 | BF267: 0 | BG267: 0 | BH267: 0 | BI267: 0 | BJ267: 0 | BK267: 0 | BL267: 0
A268: econ parameters
B269: INFLATION | C269: Year # (since Base Year) | D269: 0 | E269: =+IF(1<=$E$46+$D$46-$C$46,1,"") -> 1 | F269: =IF(E269="","",IF(E269+1<=$E$46+$D$46-$C$46,E269+1,"")) -> 2 | G269: 3 | H269: 4 | I269: 5 | J269: 6 | K269: 7 | L269: 8 | M269: 9 | N269: 10 | O269: 11 | P269: 12 | Q269: 13 | R269: 14 | S269: 15 | T269: 16 | U269: 17 | V269: 18 | W269: 19 | X269: 20 | Y269: 21 | Z269: 22 | AA269: 23 | AB269: 24 | AC269: 25 | AD269: 26 | AE269: 27 | AF269: =IF(AE269="","",IF(AE269+1<=$E$46+$D$46-$C$46,AE269+1,"")) -> 28 | AG269: 29 | AH269: 30 | AI269: 31 | AJ269: 32 | AK269: 33 | AL269: =IF(AK269="","",IF(AK269+1<=$E$46+$D$46-$C$46,AK269+1,"")) -> 34 | AM269: 35 | AN269: 36 | AO269: 37 | AP269: 38 | AQ269: 39 | AR269: 40 | AS269: 41
C270: Project Year # | D270: =IF(D271="","",D271-$D$46) -> -1 | E270: 0 | F270: 1 | G270: 2 | H270: 3 | I270: 4 | J270: 5 | K270: 6 | L270: 7 | M270: 8 | N270: 9 | O270: 10 | P270: 11 | Q270: 12 | R270: 13 | S270: 14 | T270: 15 | U270: 16 | V270: 17 | W270: 18 | X270: 19 | Y270: 20 | Z270: 21 | AA270: 22 | AB270: 23 | AC270: 24 | AD270: 25 | AE270: 26 | AF270: 27 | AG270: 28 | AH270: 29 | AI270: 30 | AJ270: =IF(AJ271="","",AJ271-$D$46) -> 31 | AK270: 32 | AL270: 33 | AM270: 34 | AN270: 35 | AO270: 36 | AP270: 37 | AQ270: 38 | AR270: 39 | AS270: 40
C271: Year | D271: =+C46 -> 2017 | E271: =+C46+1 -> 2018 | F271: =IF(F$269="","",E271+1) -> 2019 | G271: 2020 | H271: 2021 | I271: 2022 | J271: 2023 | K271: 2024 | L271: 2025 | M271: 2026 | N271: 2027 | O271: 2028 | P271: 2029 | Q271: 2030 | R271: 2031 | S271: 2032 | T271: 2033 | U271: 2034 | V271: 2035 | W271: 2036 | X271: 2037 | Y271: 2038 | Z271: 2039 | AA271: 2040 | AB271: 2041 | AC271: 2042 | AD271: 2043 | AE271: 2044 | AF271: =IF(AF$269="","",AE271+1) -> 2045 | AG271: 2046 | AH271: 2047 | AI271: 2048 | AJ271: 2049 | AK271: 2050 | AL271: =IF(AL$269="","",AK271+1) -> 2051 | AM271: 2052 | AN271: 2053 | AO271: 2054 | AP271: 2055 | AQ271: 2056 | AR271: 2057 | AS271: 2058
... 852 more rows
